{"text_format":"1","workbook":"xlsx","n_sheets":3,"sheets":["定義データ","CSV","請求用"],"not_rendered":{"charts":0,"images":0,"macros":1,"external_links":0,"defined_names":3,"comments":0,"pivot_tables":0},"unopened":[],"bounds":{"document_bytes":16777216,"sheet_cells":100000,"rows_first":2000,"rows_last":500,"rows_between":2000,"halvings":0,"cell_chars":16384,"cell_head_chars":4096},"cells_cut":0,"cells_raw":0,"read":"whole","date_system":"1900"}

{"sheet":"定義データ","index":0,"n_rows":59,"n_cols":46,"rows_kept":59,"cut":false,"hidden":false,"merged":[]}
["現場情報",{"$f":"COUNTA(A:A)","v":2},null,null,null,null,null,null,"注文先",{"$f":"COUNTA(I:I)","v":2},null,null,null,null,null,null,"勘定科目",{"$f":"COUNTA(Q:Q)","v":59},null,"印紙",{"$f":"COUNTA(T:T)","v":2},null,null,"従業員",{"$f":"COUNTA(X:X)","v":2},"消費税",{"$f":"COUNTA(Z:Z)","v":7},null,"銀行口座",{"$f":"COUNTA(AC:AC)","v":2},null,null,null,null,"部門",{"$f":"COUNTA(AI:AI)","v":2},null,null,"工事区分",{"$f":"COUNTA(AM:AM)","v":2},null,null,"受注区分",null,"請区分"]
["コード","略称","名称","工期自","工期至","施工場所","従業者コード","担当者","コード","略称","名称","〒","住所１","住所２","電話","FAX","コード","科目","表示順位","コード","下限","上限","税額","コード","名前","コード","名前","表示順位","コード","銀行","支店","種","番号","識別","コード","略称","部門","表示順位","コード","略称","工種","表示順位","コード","受注形態","コード","請形態"]
[null,null,null,null,null,null,null,null,null,null,null,null,null,null,null,null,1,"外注費",1,null,null,null,null,null,null,1,"非課税",1]
[null,null,null,null,null,null,null,null,null,null,null,null,null,null,null,null,2,"材料費",2,null,null,null,null,null,null,2,"不課税",2]
[null,null,null,null,null,null,null,null,null,null,null,null,null,null,null,null,3,"安全費",3,null,null,null,null,null,null,3,"8%",10]
[null,null,null,null,null,null,null,null,null,null,null,null,null,null,null,null,4,"値引き",4,null,null,null,null,null,null,4,"10%",11]
[null,null,null,null,null,null,null,null,null,null,null,null,null,null,null,null,1001,"運送費",5,null,null,null,null,null,null,5,"軽減8%",100]
[null,null,null,null,null,null,null,null,null,null,null,null,null,null,null,null,1002,"工具器具備品",6]
[null,null,null,null,null,null,null,null,null,null,null,null,null,null,null,null,1003,"機械等経費",7]
[null,null,null,null,null,null,null,null,null,null,null,null,null,null,null,null,1004,"車輛費",8]
[null,null,null,null,null,null,null,null,null,null,null,null,null,null,null,null,1005,"廃棄処分費",9]
[null,null,null,null,null,null,null,null,null,null,null,null,null,null,null,null,1006,"新聞図書費",10]
[null,null,null,null,null,null,null,null,null,null,null,null,null,null,null,null,1007,"水道光熱費",11]
[null,null,null,null,null,null,null,null,null,null,null,null,null,null,null,null,1008,"事務用品費",12]
[null,null,null,null,null,null,null,null,null,null,null,null,null,null,null,null,1009,"旅費交通費",13]
[null,null,null,null,null,null,null,null,null,null,null,null,null,null,null,null,1010,"消耗品費",14]
[null,null,null,null,null,null,null,null,null,null,null,null,null,null,null,null,1011,"諸会費",15]
[null,null,null,null,null,null,null,null,null,null,null,null,null,null,null,null,1012,"接待交際費",16]
[null,null,null,null,null,null,null,null,null,null,null,null,null,null,null,null,1013,"福利厚生費",17]
[null,null,null,null,null,null,null,null,null,null,null,null,null,null,null,null,1014,"法定福利費",18]
[null,null,null,null,null,null,null,null,null,null,null,null,null,null,null,null,1015,"慶弔費",19]
[null,null,null,null,null,null,null,null,null,null,null,null,null,null,null,null,1101,"支払報酬",20]
[null,null,null,null,null,null,null,null,null,null,null,null,null,null,null,null,1102,"役員報酬",21]
[null,null,null,null,null,null,null,null,null,null,null,null,null,null,null,null,1103,"管理費",22]
[null,null,null,null,null,null,null,null,null,null,null,null,null,null,null,null,1104,"労務費",23]
[null,null,null,null,null,null,null,null,null,null,null,null,null,null,null,null,1105,"賞与",24]
[null,null,null,null,null,null,null,null,null,null,null,null,null,null,null,null,1106,"人材派遣費",25]
[null,null,null,null,null,null,null,null,null,null,null,null,null,null,null,null,1107,"出資金",26]
[null,null,null,null,null,null,null,null,null,null,null,null,null,null,null,null,1108,"経費",27]
[null,null,null,null,null,null,null,null,null,null,null,null,null,null,null,null,1109,"修繕費",28]
[null,null,null,null,null,null,null,null,null,null,null,null,null,null,null,null,1110,"雑費",29]
[null,null,null,null,null,null,null,null,null,null,null,null,null,null,null,null,1111,"保険料",30]
[null,null,null,null,null,null,null,null,null,null,null,null,null,null,null,null,1112,"預託金",31]
[null,null,null,null,null,null,null,null,null,null,null,null,null,null,null,null,1113,"支払手数料",32]
[null,null,null,null,null,null,null,null,null,null,null,null,null,null,null,null,1114,"支払利息",33]
[null,null,null,null,null,null,null,null,null,null,null,null,null,null,null,null,1115,"手形売損",34]
[null,null,null,null,null,null,null,null,null,null,null,null,null,null,null,null,1116,"商品",35]
[null,null,null,null,null,null,null,null,null,null,null,null,null,null,null,null,1117,"仮払金",36]
[null,null,null,null,null,null,null,null,null,null,null,null,null,null,null,null,1118,"立替",37]
[null,null,null,null,null,null,null,null,null,null,null,null,null,null,null,null,1119,"寄付金",38]
[null,null,null,null,null,null,null,null,null,null,null,null,null,null,null,null,1120,"預かり金",39]
[null,null,null,null,null,null,null,null,null,null,null,null,null,null,null,null,1121,"宣伝広告費",40]
[null,null,null,null,null,null,null,null,null,null,null,null,null,null,null,null,1122,"ソフトウェア",41]
[null,null,null,null,null,null,null,null,null,null,null,null,null,null,null,null,1123,"地代家賃",42]
[null,null,null,null,null,null,null,null,null,null,null,null,null,null,null,null,1124,"賃借料",43]
[null,null,null,null,null,null,null,null,null,null,null,null,null,null,null,null,1125,"保証料",44]
[null,null,null,null,null,null,null,null,null,null,null,null,null,null,null,null,1126,"通信費",45]
[null,null,null,null,null,null,null,null,null,null,null,null,null,null,null,null,1127,"固定資産",46]
[null,null,null,null,null,null,null,null,null,null,null,null,null,null,null,null,1128,"減価償却費",47]
[null,null,null,null,null,null,null,null,null,null,null,null,null,null,null,null,1129,"教育訓練費",48]
[null,null,null,null,null,null,null,null,null,null,null,null,null,null,null,null,1130,"リース料",49]
[null,null,null,null,null,null,null,null,null,null,null,null,null,null,null,null,1131,"借地権",50]
[null,null,null,null,null,null,null,null,null,null,null,null,null,null,null,null,1132,"差入保証金",51]
[null,null,null,null,null,null,null,null,null,null,null,null,null,null,null,null,1133,"租税公課",52]
[null,null,null,null,null,null,null,null,null,null,null,null,null,null,null,null,1134,"法人税",53]
[null,null,null,null,null,null,null,null,null,null,null,null,null,null,null,null,1135,"地方税",54]
[null,null,null,null,null,null,null,null,null,null,null,null,null,null,null,null,1136,"事業税",55]
[null,null,null,null,null,null,null,null,null,null,null,null,null,null,null,null,1137,"住民税",56]
[null,null,null,null,null,null,null,null,null,null,null,null,null,null,null,null,1138,"消費税",57]

{"sheet":"CSV","index":1,"n_rows":0,"n_cols":0,"rows_kept":0,"cut":false,"hidden":true,"merged":[]}

{"sheet":"請求用","index":2,"n_rows":1494,"n_cols":56,"rows_kept":1494,"cut":false,"hidden":false,"merged":[[271,32,271,33],[271,34,271,38],[268,15,268,27],[268,28,268,31],[268,32,268,33],[268,34,268,38],[273,39,273,45],[273,46,273,47],[273,48,273,49],[273,50,273,53],[272,39,272,45],[272,46,272,47],[272,48,272,49],[272,50,272,53],[273,0,273,1],[273,2,273,14],[273,15,273,27],[273,28,273,31],[273,32,273,33],[273,34,273,38],[271,39,271,45],[271,46,271,47],[271,48,271,49],[271,50,271,53],[272,0,272,1],[272,2,272,14],[272,15,272,27],[272,28,272,31],[272,32,272,33],[272,34,272,38],[271,0,271,1],[271,2,271,14],[271,15,271,27],[271,28,271,31],[269,39,269,45],[269,46,269,47],[269,48,269,49],[269,50,269,53],[266,0,266,1],[266,2,266,14],[266,15,266,27],[266,28,266,31],[266,32,266,33],[266,34,266,38],[270,0,270,1],[270,2,270,14],[270,15,270,27],[270,28,270,31],[270,32,270,33],[270,34,270,38],[268,39,268,45],[268,46,268,47],[268,48,268,49],[268,50,268,53],[269,0,269,1],[269,2,269,14],[269,15,269,27],[269,28,269,31],[269,32,269,33],[269,34,269,38],[270,39,270,45],[270,46,270,47],[270,48,270,49],[270,50,270,53],[268,0,268,1],[268,2,268,14],[267,39,267,45],[267,46,267,47],[267,48,267,49],[267,50,267,53],[264,0,264,1],[264,2,264,14],[264,15,264,27],[264,28,264,31],[264,32,264,33],[264,34,264,38],[266,39,266,45],[266,46,266,47],[266,48,266,49],[266,50,266,53],[267,0,267,1],[267,2,267,14],[267,15,267,27],[267,28,267,31],[267,32,267,33],[267,34,267,38],[265,39,265,45],[265,46,265,47],[265,48,265,49],[265,50,265,53],[262,0,262,1],[262,2,262,14],[262,15,262,27],[262,28,262,31],[262,32,262,33],[262,34,262,38],[264,39,264,45],[264,46,264,47],[264,48,264,49],[264,50,264,53],[265,0,265,1],[265,2,265,14],[265,15,265,27],[265,28,265,31],[265,32,265,33],[265,34,265,38],[263,39,263,45],[263,46,263,47],[263,48,263,49],[263,50,263,53],[260,0,260,1],[260,2,260,14],[260,15,260,27],[260,28,260,31],[260,32,260,33],[260,34,260,38],[262,39,262,45],[262,46,262,47],[262,48,262,49],[262,50,262,53],[263,0,263,1],[263,2,263,14],[263,15,263,27],[263,28,263,31],[263,32,263,33],[263,34,263,38],[261,39,261,45],[261,46,261,47],[261,48,261,49],[261,50,261,53],[258,0,258,1],[258,2,258,14],[258,15,258,27],[258,28,258,31],[258,32,258,33],[258,34,258,38],[260,39,260,45],[260,46,260,47],[260,48,260,49],[260,50,260,53],[261,0,261,1],[261,2,261,14],[261,15,261,27],[261,28,261,31],[261,32,261,33],[261,34,261,38],[259,39,259,45],[259,46,259,47],[259,48,259,49],[259,50,259,53],[256,0,256,1],[256,2,256,14],[256,15,256,27],[256,28,256,31],[256,32,256,33],[256,34,256,38],[258,39,258,45],[258,46,258,47],[258,48,258,49],[258,50,258,53],[259,0,259,1],[259,2,259,14],[259,15,259,27],[259,28,259,31],[259,32,259,33],[259,34,259,38],[257,39,257,45],[257,46,257,47],[257,48,257,49],[257,50,257,53],[254,0,254,1],[254,2,254,14],[254,15,254,27],[254,28,254,31],[254,32,254,33],[254,34,254,38],[256,39,256,45],[256,46,256,47],[256,48,256,49],[256,50,256,53],[257,0,257,1],[257,2,257,14],[257,15,257,27],[257,28,257,31],[257,32,257,33],[257,34,257,38],[255,39,255,45],[255,46,255,47],[255,48,255,49],[255,50,255,53],[252,0,252,1],[252,2,252,14],[252,15,252,27],[252,28,252,31],[252,32,252,33],[252,34,252,38],[254,39,254,45],[254,46,254,47],[254,48,254,49],[254,50,254,53],[255,0,255,1],[255,2,255,14],[255,15,255,27],[255,28,255,31],[255,32,255,33],[255,34,255,38],[253,39,253,45],[253,46,253,47],[253,48,253,49],[253,50,253,53],[250,0,250,1],[250,2,250,14],[250,15,250,27],[250,28,250,31],[250,32,250,33],[250,34,250,38],[252,39,252,45],[252,46,252,47],[252,48,252,49],[252,50,252,53],[253,0,253,1],[253,2,253,14],[253,15,253,27],[253,28,253,31],[253,32,253,33],[253,34,253,38],[251,39,251,45],[251,46,251,47],[251,48,251,49],[251,50,251,53],[248,0,248,1],[248,2,248,14],[248,15,248,27],[248,28,248,31],[248,32,248,33],[248,34,248,38],[250,39,250,45],[250,46,250,47],[250,48,250,49],[250,50,250,53],[251,0,251,1],[251,2,251,14],[251,15,251,27],[251,28,251,31],[251,32,251,33],[251,34,251,38],[249,39,249,45],[249,46,249,47],[249,48,249,49],[249,50,249,53],[246,0,246,1],[246,2,246,14],[246,15,246,27],[246,28,246,31],[246,32,246,33],[246,34,246,38],[248,39,248,45],[248,46,248,47],[248,48,248,49],[248,50,248,53],[249,0,249,1],[249,2,249,14],[249,15,249,27],[249,28,249,31],[249,32,249,33],[249,34,249,38],[247,39,247,45],[247,46,247,47],[247,48,247,49],[247,50,247,53],[244,0,244,1],[244,2,244,14],[244,15,244,27],[244,28,244,31],[244,32,244,33],[244,34,244,38],[246,39,246,45],[246,46,246,47],[246,48,246,49],[246,50,246,53],[247,0,247,1],[247,2,247,14],[247,15,247,27],[247,28,247,31],[247,32,247,33],[247,34,247,38],[245,39,245,45],[245,46,245,47],[245,48,245,49],[245,50,245,53],[242,0,242,1],[242,2,242,14],[242,15,242,27],[242,28,242,31],[242,32,242,33],[242,34,242,38],[244,39,244,45],[244,46,244,47],[244,48,244,49],[244,50,244,53],[245,0,245,1],[245,2,245,14],[245,15,245,27],[245,28,245,31],[245,32,245,33],[245,34,245,38],[243,39,243,45],[243,46,243,47],[243,48,243,49],[243,50,243,53],[240,0,240,1],[240,2,240,14],[240,15,240,27],[240,28,240,31],[240,32,240,33],[240,34,240,38],[242,39,242,45],[242,46,242,47],[242,48,242,49],[242,50,242,53],[243,0,243,1],[243,2,243,14],[243,15,243,27],[243,28,243,31],[243,32,243,33],[243,34,243,38],[241,39,241,45],[241,46,241,47],[241,48,241,49],[241,50,241,53],[238,0,238,1],[238,2,238,14],[238,15,238,27],[238,28,238,31],[238,32,238,33],[238,34,238,38],[240,39,240,45],[240,46,240,47],[240,48,240,49],[240,50,240,53],[241,0,241,1],[241,2,241,14],[241,15,241,27],[241,28,241,31],[241,32,241,33],[241,34,241,38],[239,39,239,45],[239,46,239,47],[239,48,239,49],[239,50,239,53],[236,0,236,1],[236,2,236,14],[236,15,236,27],[236,28,236,31],[236,32,236,33],[236,34,236,38],[238,39,238,45],[238,46,238,47],[238,48,238,49],[238,50,238,53],[239,0,239,1],[239,2,239,14],[239,15,239,27],[239,28,239,31],[239,32,239,33],[239,34,239,38],[237,39,237,45],[237,46,237,47],[237,48,237,49],[237,50,237,53],[234,0,234,1],[234,2,234,14],[234,15,234,27],[234,28,234,31],[234,32,234,33],[234,34,234,38],[236,39,236,45],[236,46,236,47],[236,48,236,49],[236,50,236,53],[237,0,237,1],[237,2,237,14],[237,15,237,27],[237,28,237,31],[237,32,237,33],[237,34,237,38],[235,39,235,45],[235,46,235,47],[235,48,235,49],[235,50,235,53],[232,0,232,1],[232,2,232,14],[232,15,232,27],[232,28,232,31],[232,32,232,33],[232,34,232,38],[234,39,234,45],[234,46,234,47],[234,48,234,49],[234,50,234,53],[235,0,235,1],[235,2,235,14],[235,15,235,27],[235,28,235,31],[235,32,235,33],[235,34,235,38],[233,39,233,45],[233,46,233,47],[233,48,233,49],[233,50,233,53],[230,0,230,1],[230,2,230,14],[230,15,230,27],[230,28,230,31],[230,32,230,33],[230,34,230,38],[232,39,232,45],[232,46,232,47],[232,48,232,49],[232,50,232,53],[233,0,233,1],[233,2,233,14],[233,15,233,27],[233,28,233,31],[233,32,233,33],[233,34,233,38],[231,39,231,45],[231,46,231,47],[231,48,231,49],[231,50,231,53],[228,0,228,1],[228,2,228,14],[228,15,228,27],[228,28,228,31],[228,32,228,33],[228,34,228,38],[230,39,230,45],[230,46,230,47],[230,48,230,49],[230,50,230,53],[231,0,231,1],[231,2,231,14],[231,15,231,27],[231,28,231,31],[231,32,231,33],[231,34,231,38],[229,39,229,45],[229,46,229,47],[229,48,229,49],[229,50,229,53],[226,0,226,1],[226,2,226,14],[226,15,226,27],[226,28,226,31],[226,32,226,33],[226,34,226,38],[228,39,228,45],[228,46,228,47],[228,48,228,49],[228,50,228,53],[229,0,229,1],[229,2,229,14],[229,15,229,27],[229,28,229,31],[229,32,229,33],[229,34,229,38],[227,39,227,45],[227,46,227,47],[227,48,227,49],[227,50,227,53],[224,0,224,1],[224,2,224,14],[224,15,224,27],[224,28,224,31],[224,32,224,33],[224,34,224,38],[226,39,226,45],[226,46,226,47],[226,48,226,49],[226,50,226,53],[227,0,227,1],[227,2,227,14],[227,15,227,27],[227,28,227,31],[227,32,227,33],[227,34,227,38],[225,39,225,45],[225,46,225,47],[225,48,225,49],[225,50,225,53],[222,0,222,1],[222,2,222,14],[222,15,222,27],[222,28,222,31],[222,32,222,33],[222,34,222,38],[224,39,224,45],[224,46,224,47],[224,48,224,49],[224,50,224,53],[225,0,225,1],[225,2,225,14],[225,15,225,27],[225,28,225,31],[225,32,225,33],[225,34,225,38],[223,39,223,45],[223,46,223,47],[223,48,223,49],[223,50,223,53],[220,0,220,1],[220,2,220,14],[220,15,220,27],[220,28,220,31],[220,32,220,33],[220,34,220,38],[222,39,222,45],[222,46,222,47],[222,48,222,49],[222,50,222,53],[223,0,223,1],[223,2,223,14],[223,15,223,27],[223,28,223,31],[223,32,223,33],[223,34,223,38],[221,39,221,45],[221,46,221,47],[221,48,221,49],[221,50,221,53],[218,0,218,1],[218,2,218,14],[218,15,218,27],[218,28,218,31],[218,32,218,33],[218,34,218,38],[220,39,220,45],[220,46,220,47],[220,48,220,49],[220,50,220,53],[221,0,221,1],[221,2,221,14],[221,15,221,27],[221,28,221,31],[221,32,221,33],[221,34,221,38],[219,39,219,45],[219,46,219,47],[219,48,219,49],[219,50,219,53],[216,0,216,1],[216,2,216,14],[216,15,216,27],[216,28,216,31],[216,32,216,33],[216,34,216,38],[218,39,218,45],[218,46,218,47],[218,48,218,49],[218,50,218,53],[219,0,219,1],[219,2,219,14],[219,15,219,27],[219,28,219,31],[219,32,219,33],[219,34,219,38],[217,39,217,45],[217,46,217,47],[217,48,217,49],[217,50,217,53],[214,0,214,1],[214,2,214,14],[214,15,214,27],[214,28,214,31],[214,32,214,33],[214,34,214,38],[216,39,216,45],[216,46,216,47],[216,48,216,49],[216,50,216,53],[217,0,217,1],[217,2,217,14],[217,15,217,27],[217,28,217,31],[217,32,217,33],[217,34,217,38],[215,39,215,45],[215,46,215,47],[215,48,215,49],[215,50,215,53],[212,0,212,1],[212,2,212,14],[212,15,212,27],[212,28,212,31],[212,32,212,33],[212,34,212,38],[214,39,214,45],[214,46,214,47],[214,48,214,49],[214,50,214,53],[215,0,215,1],[215,2,215,14],[215,15,215,27],[215,28,215,31],[215,32,215,33],[215,34,215,38],[213,39,213,45],[213,46,213,47],[213,48,213,49],[213,50,213,53],[210,0,210,1],[210,2,210,14],[210,15,210,27],[210,28,210,31],[210,32,210,33],[210,34,210,38],[212,39,212,45],[212,46,212,47],[212,48,212,49],[212,50,212,53],[213,0,213,1],[213,2,213,14],[213,15,213,27],[213,28,213,31],[213,32,213,33],[213,34,213,38],[211,39,211,45],[211,46,211,47],[211,48,211,49],[211,50,211,53],[208,0,208,1],[208,2,208,14],[208,15,208,27],[208,28,208,31],[208,32,208,33],[208,34,208,38],[210,39,210,45],[210,46,210,47],[210,48,210,49],[210,50,210,53],[211,0,211,1],[211,2,211,14],[211,15,211,27],[211,28,211,31],[211,32,211,33],[211,34,211,38],[209,39,209,45],[209,46,209,47],[209,48,209,49],[209,50,209,53],[206,0,206,1],[206,2,206,14],[206,15,206,27],[206,28,206,31],[206,32,206,33],[206,34,206,38],[208,39,208,45],[208,46,208,47],[208,48,208,49],[208,50,208,53],[209,0,209,1],[209,2,209,14],[209,15,209,27],[209,28,209,31],[209,32,209,33],[209,34,209,38],[207,39,207,45],[207,46,207,47],[207,48,207,49],[207,50,207,53],[204,0,204,1],[204,2,204,14],[204,15,204,27],[204,28,204,31],[204,32,204,33],[204,34,204,38],[206,39,206,45],[206,46,206,47],[206,48,206,49],[206,50,206,53],[207,0,207,1],[207,2,207,14],[207,15,207,27],[207,28,207,31],[207,32,207,33],[207,34,207,38],[205,39,205,45],[205,46,205,47],[205,48,205,49],[205,50,205,53],[202,0,202,1],[202,2,202,14],[202,15,202,27],[202,28,202,31],[202,32,202,33],[202,34,202,38],[204,39,204,45],[204,46,204,47],[204,48,204,49],[204,50,204,53],[205,0,205,1],[205,2,205,14],[205,15,205,27],[205,28,205,31],[205,32,205,33],[205,34,205,38],[203,39,203,45],[203,46,203,47],[203,48,203,49],[203,50,203,53],[200,0,200,1],[200,2,200,14],[200,15,200,27],[200,28,200,31],[200,32,200,33],[200,34,200,38],[202,39,202,45],[202,46,202,47],[202,48,202,49],[202,50,202,53],[203,0,203,1],[203,2,203,14],[203,15,203,27],[203,28,203,31],[203,32,203,33],[203,34,203,38],[201,39,201,45],[201,46,201,47],[201,48,201,49],[201,50,201,53],[198,0,198,1],[198,2,198,14],[198,15,198,27],[198,28,198,31],[198,32,198,33],[198,34,198,38],[200,39,200,45],[200,46,200,47],[200,48,200,49],[200,50,200,53],[201,0,201,1],[201,2,201,14],[201,15,201,27],[201,28,201,31],[201,32,201,33],[201,34,201,38],[199,39,199,45],[199,46,199,47],[199,48,199,49],[199,50,199,53],[196,0,196,1],[196,2,196,14],[196,15,196,27],[196,28,196,31],[196,32,196,33],[196,34,196,38],[198,39,198,45],[198,46,198,47],[198,48,198,49],[198,50,198,53],[199,0,199,1],[199,2,199,14],[199,15,199,27],[199,28,199,31],[199,32,199,33],[199,34,199,38],[197,39,197,45],[197,46,197,47],[197,48,197,49],[197,50,197,53],[194,0,194,1],[194,2,194,14],[194,15,194,27],[194,28,194,31],[194,32,194,33],[194,34,194,38],[196,39,196,45],[196,46,196,47],[196,48,196,49],[196,50,196,53],[197,0,197,1],[197,2,197,14],[197,15,197,27],[197,28,197,31],[197,32,197,33],[197,34,197,38],[195,39,195,45],[195,46,195,47],[195,48,195,49],[195,50,195,53],[192,0,192,1],[192,2,192,14],[192,15,192,27],[192,28,192,31],[192,32,192,33],[192,34,192,38],[194,39,194,45],[194,46,194,47],[194,48,194,49],[194,50,194,53],[195,0,195,1],[195,2,195,14],[195,15,195,27],[195,28,195,31],[195,32,195,33],[195,34,195,38],[193,39,193,45],[193,46,193,47],[193,48,193,49],[193,50,193,53],[190,0,190,1],[190,2,190,14],[190,15,190,27],[190,28,190,31],[190,32,190,33],[190,34,190,38],[192,39,192,45],[192,46,192,47],[192,48,192,49],[192,50,192,53],[193,0,193,1],[193,2,193,14],[193,15,193,27],[193,28,193,31],[193,32,193,33],[193,34,193,38],[191,39,191,45],[191,46,191,47],[191,48,191,49],[191,50,191,53],[188,0,188,1],[188,2,188,14],[188,15,188,27],[188,28,188,31],[188,32,188,33],[188,34,188,38],[190,39,190,45],[190,46,190,47],[190,48,190,49],[190,50,190,53],[191,0,191,1],[191,2,191,14],[191,15,191,27],[191,28,191,31],[191,32,191,33],[191,34,191,38],[189,39,189,45],[189,46,189,47],[189,48,189,49],[189,50,189,53],[186,0,186,1],[186,2,186,14],[186,15,186,27],[186,28,186,31],[186,32,186,33],[186,34,186,38],[188,39,188,45],[188,46,188,47],[188,48,188,49],[188,50,188,53],[189,0,189,1],[189,2,189,14],[189,15,189,27],[189,28,189,31],[189,32,189,33],[189,34,189,38],[187,39,187,45],[187,46,187,47],[187,48,187,49],[187,50,187,53],[184,0,184,1],[184,2,184,14],[184,15,184,27],[184,28,184,31],[184,32,184,33],[184,34,184,38],[186,39,186,45],[186,46,186,47],[186,48,186,49],[186,50,186,53],[187,0,187,1],[187,2,187,14],[187,15,187,27],[187,28,187,31],[187,32,187,33],[187,34,187,38],[185,39,185,45],[185,46,185,47],[185,48,185,49],[185,50,185,53],[182,0,182,1],[182,2,182,14],[182,15,182,27],[182,28,182,31],[182,32,182,33],[182,34,182,38],[184,39,184,45],[184,46,184,47],[184,48,184,49],[184,50,184,53],[185,0,185,1],[185,2,185,14],[185,15,185,27],[185,28,185,31],[185,32,185,33],[185,34,185,38],[183,39,183,45],[183,46,183,47],[183,48,183,49],[183,50,183,53],[180,0,180,1],[180,2,180,14],[180,15,180,27],[180,28,180,31],[180,32,180,33],[180,34,180,38],[182,39,182,45],[182,46,182,47],[182,48,182,49],[182,50,182,53],[183,0,183,1],[183,2,183,14],[183,15,183,27],[183,28,183,31],[183,32,183,33],[183,34,183,38],[181,39,181,45],[181,46,181,47],[181,48,181,49],[181,50,181,53],[178,0,178,1],[178,2,178,14],[178,15,178,27],[178,28,178,31],[178,32,178,33],[178,34,178,38],[180,39,180,45],[180,46,180,47],[180,48,180,49],[180,50,180,53],[181,0,181,1],[181,2,181,14],[181,15,181,27],[181,28,181,31],[181,32,181,33],[181,34,181,38],[179,39,179,45],[179,46,179,47],[179,48,179,49],[179,50,179,53],[176,0,176,1],[176,2,176,14],[176,15,176,27],[176,28,176,31],[176,32,176,33],[176,34,176,38],[178,39,178,45],[178,46,178,47],[178,48,178,49],[178,50,178,53],[179,0,179,1],[179,2,179,14],[179,15,179,27],[179,28,179,31],[179,32,179,33],[179,34,179,38],[177,39,177,45],[177,46,177,47],[177,48,177,49],[177,50,177,53],[174,0,174,1],[174,2,174,14],[174,15,174,27],[174,28,174,31],[174,32,174,33],[174,34,174,38],[176,39,176,45],[176,46,176,47],[176,48,176,49],[176,50,176,53],[177,0,177,1],[177,2,177,14],[177,15,177,27],[177,28,177,31],[177,32,177,33],[177,34,177,38],[175,39,175,45],[175,46,175,47],[175,48,175,49],[175,50,175,53],[172,0,172,1],[172,2,172,14],[172,15,172,27],[172,28,172,31],[172,32,172,33],[172,34,172,38],[174,39,174,45],[174,46,174,47],[174,48,174,49],[174,50,174,53]],"merged_total":2602,"flags":["merged_cut"]}
[null,null,null,null,null,null,null,null,null,null,null,null,"三重県桑名市赤尾台4丁目45",null,null,null,null,null,null,null,null,null,null,null,null,null,null,null,null,null,null,null,null,null,null,null,null,null,null,null,null,null,null,null,"伝票番号：",null,null,null,null,null,null,null,null,null,null,"利用最終行"]
[null,null,null,null,null,null,null,null,null,null,null,null,null,null,null,null,null,null,null,null,null,null,"請求書",null,null,null,null,null,null,null,null,null,null,null,null,null,null,null,null,null,null,null,null,null,"発行日",null,null,"年",null,null,"月",null,"日",null,null,{"$f":"MAX(BC:BC)-19","v":1}]
[null,null,null,null,null,null,null,null,null,null,null,null,null,null,null,null,null,null,null,null,null,null,null,null,null,null,null,null,null,null,null,null,null,null,null,null,null,null,null,null,null,null,null,null,null,null,null,null,null,null,null,null,null,null,null,"印刷ページ"]
[null,"〒510-0002",null,null,null,null,null,null,null,null,null,null,null,null,null,null,null,null,null,null,null,null,null,null,null,null,null,null,null,null,null,null,null,null,null,null,null,null,null,null,null,null,null,null,null,null,null,null,null,null,null,null,null,null,null,{"$f":"ROUNDUP(BD2/10,0)","v":1}]
[null,"三重県四日市市羽津中二丁目2-4",null,null,null,null,null,null,null,null,null,null,null,null,null,null,null,null,null,null,null,null,null,null,null,null,null,null,null,null,null,null,null,null,"会社コード",null,null,null,null,null,null,null,null,null,null,null,null,null,"\n社印\n\n必ず枠内に\n収めてください\n２ページ目以降押印不要",null,null,null,null,null,null,"印刷最終行"]
[null,null,null,null,null,null,null,null,null,null,null,null,null,null,null,null,null,null,null,null,null,null,null,null,null,null,null,null,null,null,null,null,null,null,"会社名"]
[null,"株式会社サンエイ工務店 御中",null,null,null,null,null,null,null,null,null,null,null,null,null,null,null,null,null,null,null,null,null,null,null,null,null,null,null,null,null,null,null,null,null,null,null,null,null,null,null,null,null,null,null,null,null,null,null,null,null,null,null,null,null,{"$f":"BD4*10+19","v":29}]
[]
["現場コード"]
[null,null,null,null,null,null,null,null,null,null,null,null,null,null,null,null,null,null,null,null,null,null,null,null,null,null,null,null,null,null,null,null,null,null,"〒"]
["現場名称",null,null,null,null,null,null,null,null,null,null,null,null,null,null,null,null,null,null,null,null,null,null,null,null,null,null,null,null,null,null,null,null,null,"住所　"]
[]
[null,null,null,null,null,null,null,null,null,null,null,null,null,null,null,null,null,null,null,null,null,null,null,null,null,null,null,null,null,null,null,null,null,null,"TEL",null,null,null,null,null,null,null,null,null,"FAX"]
["下記にサンエイの現場担当者名を入力してください"]
["担　当　者",null,null,null,null,null,null,null,null,null,null,null,null,null,null,null,null,null,null,null,null,null,null,null,null,null,null,"税 抜 金 額",null,null,null,null,null,null,null,null,"消 費 税 額",null,null,null,null,null,null,null,"税 込 金 額"]
[null,null,null,null,null,null,null,null,null,null,null,null,null,null,null,null,null,null,null,null,null,null,null,null,null,null,null,{"$f":"SUM(AN20:AT250)","v":0},null,null,null,null,null,null,null,null,{"$f":"SUM(BD20:BD250)","v":0},null,null,null,null,null,null,null,{"$f":"AB16+AK16","v":0}]
["注文ｺｰﾄﾞ",null,null,{"$f":"IF(D9<>\"\",IF(AL5<>\"\",IF(AV3<>\"\",IF(AY3<>\"\",IF(BA3<>\"\",\"00-\"&D9&\"-\"&AL5&\"-\"&AV3&AY3&BA3&\"-000000\"),\"\"),\"\"),\"\"),\"\")","v":""},null,null,null,null,null,null,null,null,null,null,null,null,null,null,null,"←自動です"]
[]
["Ｎｏ",null,"項目",null,null,null,null,null,null,null,null,null,null,null,null,"規格",null,null,null,null,null,null,null,null,null,null,null,null,"数量",null,null,null,"単位",null,"単価",null,null,null,null,"金額",null,null,null,null,null,null,"税区分",null,"勘定科目",null,null,null,null,null,20,"消費税計算"]
[null,null,null,null,null,null,null,null,null,null,null,null,null,null,null,null,null,null,null,null,null,null,null,null,null,null,null,null,null,null,null,null,null,null,null,null,null,null,null,{"$f":"IF(AI20=\"\",\"\",AC20*AI20)","v":""},null,null,null,null,null,null,null,null,null,null,null,null,null,null,{"$f":"IF(A20&C20&P20&AC20&AG20&AI20&AN20&AU20&AW20&AY20<>\"\",ROW(),0)","v":0},{"$f":"IF(AN20=\"\",\"\",IF(LEFT(AU20,2)=\"軽減\",INT(MID(AU20,3,5)*AN20),IF(RIGHT(AU20,2)=\"課税\",0,INT(AU20*AN20))))","v":""}]
[null,null,null,null,null,null,null,null,null,null,null,null,null,null,null,null,null,null,null,null,null,null,null,null,null,null,null,null,null,null,null,null,null,null,null,null,null,null,null,{"$f":"IF(AI21=\"\",\"\",AC21*AI21)","v":""},null,null,null,null,null,null,null,null,null,null,null,null,null,null,{"$f":"IF(A21&C21&P21&AC21&AG21&AI21&AN21&AU21&AW21&AY21<>\"\",ROW(),0)","v":0},{"$f":"IF(AN21=\"\",\"\",IF(LEFT(AU21,2)=\"軽減\",INT(MID(AU21,3,5)*AN21),IF(RIGHT(AU21,2)=\"課税\",0,INT(AU21*AN21))))","v":""}]
[null,null,null,null,null,null,null,null,null,null,null,null,null,null,null,null,null,null,null,null,null,null,null,null,null,null,null,null,null,null,null,null,null,null,null,null,null,null,null,"",null,null,null,null,null,null,null,null,null,null,null,null,null,null,0,{"$f":"IF(AN22=\"\",\"\",IF(LEFT(AU22,2)=\"軽減\",INT(MID(AU22,3,5)*AN22),IF(RIGHT(AU22,2)=\"課税\",0,INT(AU22*AN22))))","v":""}]
[null,null,null,null,null,null,null,null,null,null,null,null,null,null,null,null,null,null,null,null,null,null,null,null,null,null,null,null,null,null,null,null,null,null,null,null,null,null,null,"",null,null,null,null,null,null,null,null,null,null,null,null,null,null,0,{"$f":"IF(AN23=\"\",\"\",IF(LEFT(AU23,2)=\"軽減\",INT(MID(AU23,3,5)*AN23),IF(RIGHT(AU23,2)=\"課税\",0,INT(AU23*AN23))))","v":""}]
[null,null,null,null,null,null,null,null,null,null,null,null,null,null,null,null,null,null,null,null,null,null,null,null,null,null,null,null,null,null,null,null,null,null,null,null,null,null,null,"",null,null,null,null,null,null,null,null,null,null,null,null,null,null,0,{"$f":"IF(AN24=\"\",\"\",IF(LEFT(AU24,2)=\"軽減\",INT(MID(AU24,3,5)*AN24),IF(RIGHT(AU24,2)=\"課税\",0,INT(AU24*AN24))))","v":""}]
[null,null,null,null,null,null,null,null,null,null,null,null,null,null,null,null,null,null,null,null,null,null,null,null,null,null,null,null,null,null,null,null,null,null,null,null,null,null,null,"",null,null,null,null,null,null,null,null,null,null,null,null,null,null,0,""]
[null,null,null,null,null,null,null,null,null,null,null,null,null,null,null,null,null,null,null,null,null,null,null,null,null,null,null,null,null,null,null,null,null,null,null,null,null,null,null,"",null,null,null,null,null,null,null,null,null,null,null,null,null,null,0,""]
[null,null,null,null,null,null,null,null,null,null,null,null,null,null,null,null,null,null,null,null,null,null,null,null,null,null,null,null,null,null,null,null,null,null,null,null,null,null,null,"",null,null,null,null,null,null,null,null,null,null,null,null,null,null,0,""]
[null,null,null,null,null,null,null,null,null,null,null,null,null,null,null,null,null,null,null,null,null,null,null,null,null,null,null,null,null,null,null,null,null,null,null,null,null,null,null,"",null,null,null,null,null,null,null,null,null,null,null,null,null,null,0,""]
[null,null,null,null,null,null,null,null,null,null,null,null,null,null,null,null,null,null,null,null,null,null,null,null,null,null,null,null,null,null,null,null,null,null,null,null,null,null,null,{"$f":"IF(AI29=\"\",\"\",AC29*AI29)","v":""},null,null,null,null,null,null,null,null,null,null,null,null,null,null,0,""]
[null,null,null,null,null,null,null,null,null,null,null,null,null,null,null,null,null,null,null,null,null,null,null,null,null,null,null,null,null,null,null,null,null,null,null,null,null,null,null,{"$f":"IF(AI30=\"\",\"\",AC30*AI30)","v":""},null,null,null,null,null,null,null,null,null,null,null,null,null,null,0,""]
[null,null,null,null,null,null,null,null,null,null,null,null,null,null,null,null,null,null,null,null,null,null,null,null,null,null,null,null,null,null,null,null,null,null,null,null,null,null,null,"",null,null,null,null,null,null,null,null,null,null,null,null,null,null,0,""]
[null,null,null,null,null,null,null,null,null,null,null,null,null,null,null,null,null,null,null,null,null,null,null,null,null,null,null,null,null,null,null,null,null,null,null,null,null,null,null,"",null,null,null,null,null,null,null,null,null,null,null,null,null,null,0,""]
[null,null,null,null,null,null,null,null,null,null,null,null,null,null,null,null,null,null,null,null,null,null,null,null,null,null,null,null,null,null,null,null,null,null,null,null,null,null,null,"",null,null,null,null,null,null,null,null,null,null,null,null,null,null,0,""]
[null,null,null,null,null,null,null,null,null,null,null,null,null,null,null,null,null,null,null,null,null,null,null,null,null,null,null,null,null,null,null,null,null,null,null,null,null,null,null,"",null,null,null,null,null,null,null,null,null,null,null,null,null,null,0,""]
[null,null,null,null,null,null,null,null,null,null,null,null,null,null,null,null,null,null,null,null,null,null,null,null,null,null,null,null,null,null,null,null,null,null,null,null,null,null,null,"",null,null,null,null,null,null,null,null,null,null,null,null,null,null,0,""]
[null,null,null,null,null,null,null,null,null,null,null,null,null,null,null,null,null,null,null,null,null,null,null,null,null,null,null,null,null,null,null,null,null,null,null,null,null,null,null,"",null,null,null,null,null,null,null,null,null,null,null,null,null,null,0,""]
[null,null,null,null,null,null,null,null,null,null,null,null,null,null,null,null,null,null,null,null,null,null,null,null,null,null,null,null,null,null,null,null,null,null,null,null,null,null,null,"",null,null,null,null,null,null,null,null,null,null,null,null,null,null,0,""]
[null,null,null,null,null,null,null,null,null,null,null,null,null,null,null,null,null,null,null,null,null,null,null,null,null,null,null,null,null,null,null,null,null,null,null,null,null,null,null,"",null,null,null,null,null,null,null,null,null,null,null,null,null,null,0,""]
[null,null,null,null,null,null,null,null,null,null,null,null,null,null,null,null,null,null,null,null,null,null,null,null,null,null,null,null,null,null,null,null,null,null,null,null,null,null,null,"",null,null,null,null,null,null,null,null,null,null,null,null,null,null,0,""]
[null,null,null,null,null,null,null,null,null,null,null,null,null,null,null,null,null,null,null,null,null,null,null,null,null,null,null,null,null,null,null,null,null,null,null,null,null,null,null,"",null,null,null,null,null,null,null,null,null,null,null,null,null,null,0,""]
[null,null,null,null,null,null,null,null,null,null,null,null,null,null,null,null,null,null,null,null,null,null,null,null,null,null,null,null,null,null,null,null,null,null,null,null,null,null,null,"",null,null,null,null,null,null,null,null,null,null,null,null,null,null,0,""]
[null,null,null,null,null,null,null,null,null,null,null,null,null,null,null,null,null,null,null,null,null,null,null,null,null,null,null,null,null,null,null,null,null,null,null,null,null,null,null,"",null,null,null,null,null,null,null,null,null,null,null,null,null,null,0,""]
[null,null,null,null,null,null,null,null,null,null,null,null,null,null,null,null,null,null,null,null,null,null,null,null,null,null,null,null,null,null,null,null,null,null,null,null,null,null,null,"",null,null,null,null,null,null,null,null,null,null,null,null,null,null,0,""]
[null,null,null,null,null,null,null,null,null,null,null,null,null,null,null,null,null,null,null,null,null,null,null,null,null,null,null,null,null,null,null,null,null,null,null,null,null,null,null,"",null,null,null,null,null,null,null,null,null,null,null,null,null,null,0,""]
[null,null,null,null,null,null,null,null,null,null,null,null,null,null,null,null,null,null,null,null,null,null,null,null,null,null,null,null,null,null,null,null,null,null,null,null,null,null,null,"",null,null,null,null,null,null,null,null,null,null,null,null,null,null,0,""]
[null,null,null,null,null,null,null,null,null,null,null,null,null,null,null,null,null,null,null,null,null,null,null,null,null,null,null,null,null,null,null,null,null,null,null,null,null,null,null,"",null,null,null,null,null,null,null,null,null,null,null,null,null,null,0,""]
[null,null,null,null,null,null,null,null,null,null,null,null,null,null,null,null,null,null,null,null,null,null,null,null,null,null,null,null,null,null,null,null,null,null,null,null,null,null,null,"",null,null,null,null,null,null,null,null,null,null,null,null,null,null,0,""]
[null,null,null,null,null,null,null,null,null,null,null,null,null,null,null,null,null,null,null,null,null,null,null,null,null,null,null,null,null,null,null,null,null,null,null,null,null,null,null,"",null,null,null,null,null,null,null,null,null,null,null,null,null,null,0,""]
[null,null,null,null,null,null,null,null,null,null,null,null,null,null,null,null,null,null,null,null,null,null,null,null,null,null,null,null,null,null,null,null,null,null,null,null,null,null,null,"",null,null,null,null,null,null,null,null,null,null,null,null,null,null,0,""]
[null,null,null,null,null,null,null,null,null,null,null,null,null,null,null,null,null,null,null,null,null,null,null,null,null,null,null,null,null,null,null,null,null,null,null,null,null,null,null,"",null,null,null,null,null,null,null,null,null,null,null,null,null,null,0,""]
[null,null,null,null,null,null,null,null,null,null,null,null,null,null,null,null,null,null,null,null,null,null,null,null,null,null,null,null,null,null,null,null,null,null,null,null,null,null,null,"",null,null,null,null,null,null,null,null,null,null,null,null,null,null,0,""]
[null,null,null,null,null,null,null,null,null,null,null,null,null,null,null,null,null,null,null,null,null,null,null,null,null,null,null,null,null,null,null,null,null,null,null,null,null,null,null,"",null,null,null,null,null,null,null,null,null,null,null,null,null,null,0,""]
[null,null,null,null,null,null,null,null,null,null,null,null,null,null,null,null,null,null,null,null,null,null,null,null,null,null,null,null,null,null,null,null,null,null,null,null,null,null,null,"",null,null,null,null,null,null,null,null,null,null,null,null,null,null,0,""]
[null,null,null,null,null,null,null,null,null,null,null,null,null,null,null,null,null,null,null,null,null,null,null,null,null,null,null,null,null,null,null,null,null,null,null,null,null,null,null,"",null,null,null,null,null,null,null,null,null,null,null,null,null,null,0,""]
[null,null,null,null,null,null,null,null,null,null,null,null,null,null,null,null,null,null,null,null,null,null,null,null,null,null,null,null,null,null,null,null,null,null,null,null,null,null,null,"",null,null,null,null,null,null,null,null,null,null,null,null,null,null,0,""]
[null,null,null,null,null,null,null,null,null,null,null,null,null,null,null,null,null,null,null,null,null,null,null,null,null,null,null,null,null,null,null,null,null,null,null,null,null,null,null,"",null,null,null,null,null,null,null,null,null,null,null,null,null,null,0,""]
[null,null,null,null,null,null,null,null,null,null,null,null,null,null,null,null,null,null,null,null,null,null,null,null,null,null,null,null,null,null,null,null,null,null,null,null,null,null,null,"",null,null,null,null,null,null,null,null,null,null,null,null,null,null,0,""]
[null,null,null,null,null,null,null,null,null,null,null,null,null,null,null,null,null,null,null,null,null,null,null,null,null,null,null,null,null,null,null,null,null,null,null,null,null,null,null,"",null,null,null,null,null,null,null,null,null,null,null,null,null,null,0,""]
[null,null,null,null,null,null,null,null,null,null,null,null,null,null,null,null,null,null,null,null,null,null,null,null,null,null,null,null,null,null,null,null,null,null,null,null,null,null,null,"",null,null,null,null,null,null,null,null,null,null,null,null,null,null,0,""]
[null,null,null,null,null,null,null,null,null,null,null,null,null,null,null,null,null,null,null,null,null,null,null,null,null,null,null,null,null,null,null,null,null,null,null,null,null,null,null,"",null,null,null,null,null,null,null,null,null,null,null,null,null,null,0,""]
[null,null,null,null,null,null,null,null,null,null,null,null,null,null,null,null,null,null,null,null,null,null,null,null,null,null,null,null,null,null,null,null,null,null,null,null,null,null,null,"",null,null,null,null,null,null,null,null,null,null,null,null,null,null,0,""]
[null,null,null,null,null,null,null,null,null,null,null,null,null,null,null,null,null,null,null,null,null,null,null,null,null,null,null,null,null,null,null,null,null,null,null,null,null,null,null,"",null,null,null,null,null,null,null,null,null,null,null,null,null,null,0,""]
[null,null,null,null,null,null,null,null,null,null,null,null,null,null,null,null,null,null,null,null,null,null,null,null,null,null,null,null,null,null,null,null,null,null,null,null,null,null,null,"",null,null,null,null,null,null,null,null,null,null,null,null,null,null,0,""]
[null,null,null,null,null,null,null,null,null,null,null,null,null,null,null,null,null,null,null,null,null,null,null,null,null,null,null,null,null,null,null,null,null,null,null,null,null,null,null,"",null,null,null,null,null,null,null,null,null,null,null,null,null,null,0,""]
[null,null,null,null,null,null,null,null,null,null,null,null,null,null,null,null,null,null,null,null,null,null,null,null,null,null,null,null,null,null,null,null,null,null,null,null,null,null,null,"",null,null,null,null,null,null,null,null,null,null,null,null,null,null,0,""]
[null,null,null,null,null,null,null,null,null,null,null,null,null,null,null,null,null,null,null,null,null,null,null,null,null,null,null,null,null,null,null,null,null,null,null,null,null,null,null,"",null,null,null,null,null,null,null,null,null,null,null,null,null,null,0,""]
[null,null,null,null,null,null,null,null,null,null,null,null,null,null,null,null,null,null,null,null,null,null,null,null,null,null,null,null,null,null,null,null,null,null,null,null,null,null,null,"",null,null,null,null,null,null,null,null,null,null,null,null,null,null,0,""]
[null,null,null,null,null,null,null,null,null,null,null,null,null,null,null,null,null,null,null,null,null,null,null,null,null,null,null,null,null,null,null,null,null,null,null,null,null,null,null,"",null,null,null,null,null,null,null,null,null,null,null,null,null,null,0,""]
[null,null,null,null,null,null,null,null,null,null,null,null,null,null,null,null,null,null,null,null,null,null,null,null,null,null,null,null,null,null,null,null,null,null,null,null,null,null,null,"",null,null,null,null,null,null,null,null,null,null,null,null,null,null,0,""]
[null,null,null,null,null,null,null,null,null,null,null,null,null,null,null,null,null,null,null,null,null,null,null,null,null,null,null,null,null,null,null,null,null,null,null,null,null,null,null,"",null,null,null,null,null,null,null,null,null,null,null,null,null,null,0,""]
[null,null,null,null,null,null,null,null,null,null,null,null,null,null,null,null,null,null,null,null,null,null,null,null,null,null,null,null,null,null,null,null,null,null,null,null,null,null,null,"",null,null,null,null,null,null,null,null,null,null,null,null,null,null,0,""]
[null,null,null,null,null,null,null,null,null,null,null,null,null,null,null,null,null,null,null,null,null,null,null,null,null,null,null,null,null,null,null,null,null,null,null,null,null,null,null,"",null,null,null,null,null,null,null,null,null,null,null,null,null,null,0,""]
[null,null,null,null,null,null,null,null,null,null,null,null,null,null,null,null,null,null,null,null,null,null,null,null,null,null,null,null,null,null,null,null,null,null,null,null,null,null,null,"",null,null,null,null,null,null,null,null,null,null,null,null,null,null,0,""]
[null,null,null,null,null,null,null,null,null,null,null,null,null,null,null,null,null,null,null,null,null,null,null,null,null,null,null,null,null,null,null,null,null,null,null,null,null,null,null,"",null,null,null,null,null,null,null,null,null,null,null,null,null,null,0,""]
[null,null,null,null,null,null,null,null,null,null,null,null,null,null,null,null,null,null,null,null,null,null,null,null,null,null,null,null,null,null,null,null,null,null,null,null,null,null,null,"",null,null,null,null,null,null,null,null,null,null,null,null,null,null,0,""]
[null,null,null,null,null,null,null,null,null,null,null,null,null,null,null,null,null,null,null,null,null,null,null,null,null,null,null,null,null,null,null,null,null,null,null,null,null,null,null,"",null,null,null,null,null,null,null,null,null,null,null,null,null,null,0,""]
[null,null,null,null,null,null,null,null,null,null,null,null,null,null,null,null,null,null,null,null,null,null,null,null,null,null,null,null,null,null,null,null,null,null,null,null,null,null,null,"",null,null,null,null,null,null,null,null,null,null,null,null,null,null,0,""]
[null,null,null,null,null,null,null,null,null,null,null,null,null,null,null,null,null,null,null,null,null,null,null,null,null,null,null,null,null,null,null,null,null,null,null,null,null,null,null,"",null,null,null,null,null,null,null,null,null,null,null,null,null,null,0,""]
[null,null,null,null,null,null,null,null,null,null,null,null,null,null,null,null,null,null,null,null,null,null,null,null,null,null,null,null,null,null,null,null,null,null,null,null,null,null,null,"",null,null,null,null,null,null,null,null,null,null,null,null,null,null,0,""]
[null,null,null,null,null,null,null,null,null,null,null,null,null,null,null,null,null,null,null,null,null,null,null,null,null,null,null,null,null,null,null,null,null,null,null,null,null,null,null,"",null,null,null,null,null,null,null,null,null,null,null,null,null,null,0,""]
[null,null,null,null,null,null,null,null,null,null,null,null,null,null,null,null,null,null,null,null,null,null,null,null,null,null,null,null,null,null,null,null,null,null,null,null,null,null,null,"",null,null,null,null,null,null,null,null,null,null,null,null,null,null,0,""]
[null,null,null,null,null,null,null,null,null,null,null,null,null,null,null,null,null,null,null,null,null,null,null,null,null,null,null,null,null,null,null,null,null,null,null,null,null,null,null,"",null,null,null,null,null,null,null,null,null,null,null,null,null,null,0,""]
[null,null,null,null,null,null,null,null,null,null,null,null,null,null,null,null,null,null,null,null,null,null,null,null,null,null,null,null,null,null,null,null,null,null,null,null,null,null,null,"",null,null,null,null,null,null,null,null,null,null,null,null,null,null,0,""]
[null,null,null,null,null,null,null,null,null,null,null,null,null,null,null,null,null,null,null,null,null,null,null,null,null,null,null,null,null,null,null,null,null,null,null,null,null,null,null,"",null,null,null,null,null,null,null,null,null,null,null,null,null,null,0,""]
[null,null,null,null,null,null,null,null,null,null,null,null,null,null,null,null,null,null,null,null,null,null,null,null,null,null,null,null,null,null,null,null,null,null,null,null,null,null,null,"",null,null,null,null,null,null,null,null,null,null,null,null,null,null,{"$f":"IF(A85&C85&P85&AC85&AG85&AI85&AN85&AU85&AW85&AY85<>\"\",ROW(),0)","v":0},""]
[null,null,null,null,null,null,null,null,null,null,null,null,null,null,null,null,null,null,null,null,null,null,null,null,null,null,null,null,null,null,null,null,null,null,null,null,null,null,null,"",null,null,null,null,null,null,null,null,null,null,null,null,null,null,0,""]
[null,null,null,null,null,null,null,null,null,null,null,null,null,null,null,null,null,null,null,null,null,null,null,null,null,null,null,null,null,null,null,null,null,null,null,null,null,null,null,"",null,null,null,null,null,null,null,null,null,null,null,null,null,null,0,""]
[null,null,null,null,null,null,null,null,null,null,null,null,null,null,null,null,null,null,null,null,null,null,null,null,null,null,null,null,null,null,null,null,null,null,null,null,null,null,null,"",null,null,null,null,null,null,null,null,null,null,null,null,null,null,0,{"$f":"IF(AN88=\"\",\"\",IF(LEFT(AU88,2)=\"軽減\",INT(MID(AU88,3,5)*AN88),IF(RIGHT(AU88,2)=\"課税\",0,INT(AU88*AN88))))","v":""}]
[null,null,null,null,null,null,null,null,null,null,null,null,null,null,null,null,null,null,null,null,null,null,null,null,null,null,null,null,null,null,null,null,null,null,null,null,null,null,null,"",null,null,null,null,null,null,null,null,null,null,null,null,null,null,0,""]
[null,null,null,null,null,null,null,null,null,null,null,null,null,null,null,null,null,null,null,null,null,null,null,null,null,null,null,null,null,null,null,null,null,null,null,null,null,null,null,"",null,null,null,null,null,null,null,null,null,null,null,null,null,null,0,""]
[null,null,null,null,null,null,null,null,null,null,null,null,null,null,null,null,null,null,null,null,null,null,null,null,null,null,null,null,null,null,null,null,null,null,null,null,null,null,null,"",null,null,null,null,null,null,null,null,null,null,null,null,null,null,0,""]
[null,null,null,null,null,null,null,null,null,null,null,null,null,null,null,null,null,null,null,null,null,null,null,null,null,null,null,null,null,null,null,null,null,null,null,null,null,null,null,"",null,null,null,null,null,null,null,null,null,null,null,null,null,null,0,""]
[null,null,null,null,null,null,null,null,null,null,null,null,null,null,null,null,null,null,null,null,null,null,null,null,null,null,null,null,null,null,null,null,null,null,null,null,null,null,null,"",null,null,null,null,null,null,null,null,null,null,null,null,null,null,0,""]
[null,null,null,null,null,null,null,null,null,null,null,null,null,null,null,null,null,null,null,null,null,null,null,null,null,null,null,null,null,null,null,null,null,null,null,null,null,null,null,{"$f":"IF(AI94=\"\",\"\",AC94*AI94)","v":""},null,null,null,null,null,null,null,null,null,null,null,null,null,null,0,""]
[null,null,null,null,null,null,null,null,null,null,null,null,null,null,null,null,null,null,null,null,null,null,null,null,null,null,null,null,null,null,null,null,null,null,null,null,null,null,null,"",null,null,null,null,null,null,null,null,null,null,null,null,null,null,0,""]
[null,null,null,null,null,null,null,null,null,null,null,null,null,null,null,null,null,null,null,null,null,null,null,null,null,null,null,null,null,null,null,null,null,null,null,null,null,null,null,"",null,null,null,null,null,null,null,null,null,null,null,null,null,null,0,""]
[null,null,null,null,null,null,null,null,null,null,null,null,null,null,null,null,null,null,null,null,null,null,null,null,null,null,null,null,null,null,null,null,null,null,null,null,null,null,null,"",null,null,null,null,null,null,null,null,null,null,null,null,null,null,0,""]
[null,null,null,null,null,null,null,null,null,null,null,null,null,null,null,null,null,null,null,null,null,null,null,null,null,null,null,null,null,null,null,null,null,null,null,null,null,null,null,"",null,null,null,null,null,null,null,null,null,null,null,null,null,null,0,""]
[null,null,null,null,null,null,null,null,null,null,null,null,null,null,null,null,null,null,null,null,null,null,null,null,null,null,null,null,null,null,null,null,null,null,null,null,null,null,null,"",null,null,null,null,null,null,null,null,null,null,null,null,null,null,0,""]
[null,null,null,null,null,null,null,null,null,null,null,null,null,null,null,null,null,null,null,null,null,null,null,null,null,null,null,null,null,null,null,null,null,null,null,null,null,null,null,"",null,null,null,null,null,null,null,null,null,null,null,null,null,null,0,""]
[null,null,null,null,null,null,null,null,null,null,null,null,null,null,null,null,null,null,null,null,null,null,null,null,null,null,null,null,null,null,null,null,null,null,null,null,null,null,null,"",null,null,null,null,null,null,null,null,null,null,null,null,null,null,0,""]
[null,null,null,null,null,null,null,null,null,null,null,null,null,null,null,null,null,null,null,null,null,null,null,null,null,null,null,null,null,null,null,null,null,null,null,null,null,null,null,"",null,null,null,null,null,null,null,null,null,null,null,null,null,null,0,""]
[null,null,null,null,null,null,null,null,null,null,null,null,null,null,null,null,null,null,null,null,null,null,null,null,null,null,null,null,null,null,null,null,null,null,null,null,null,null,null,"",null,null,null,null,null,null,null,null,null,null,null,null,null,null,0,""]
[null,null,null,null,null,null,null,null,null,null,null,null,null,null,null,null,null,null,null,null,null,null,null,null,null,null,null,null,null,null,null,null,null,null,null,null,null,null,null,"",null,null,null,null,null,null,null,null,null,null,null,null,null,null,0,""]
[null,null,null,null,null,null,null,null,null,null,null,null,null,null,null,null,null,null,null,null,null,null,null,null,null,null,null,null,null,null,null,null,null,null,null,null,null,null,null,"",null,null,null,null,null,null,null,null,null,null,null,null,null,null,0,""]
[null,null,null,null,null,null,null,null,null,null,null,null,null,null,null,null,null,null,null,null,null,null,null,null,null,null,null,null,null,null,null,null,null,null,null,null,null,null,null,"",null,null,null,null,null,null,null,null,null,null,null,null,null,null,0,""]
[null,null,null,null,null,null,null,null,null,null,null,null,null,null,null,null,null,null,null,null,null,null,null,null,null,null,null,null,null,null,null,null,null,null,null,null,null,null,null,"",null,null,null,null,null,null,null,null,null,null,null,null,null,null,0,""]
[null,null,null,null,null,null,null,null,null,null,null,null,null,null,null,null,null,null,null,null,null,null,null,null,null,null,null,null,null,null,null,null,null,null,null,null,null,null,null,"",null,null,null,null,null,null,null,null,null,null,null,null,null,null,0,""]
[null,null,null,null,null,null,null,null,null,null,null,null,null,null,null,null,null,null,null,null,null,null,null,null,null,null,null,null,null,null,null,null,null,null,null,null,null,null,null,"",null,null,null,null,null,null,null,null,null,null,null,null,null,null,0,""]
[null,null,null,null,null,null,null,null,null,null,null,null,null,null,null,null,null,null,null,null,null,null,null,null,null,null,null,null,null,null,null,null,null,null,null,null,null,null,null,"",null,null,null,null,null,null,null,null,null,null,null,null,null,null,0,""]
[null,null,null,null,null,null,null,null,null,null,null,null,null,null,null,null,null,null,null,null,null,null,null,null,null,null,null,null,null,null,null,null,null,null,null,null,null,null,null,"",null,null,null,null,null,null,null,null,null,null,null,null,null,null,0,""]
[null,null,null,null,null,null,null,null,null,null,null,null,null,null,null,null,null,null,null,null,null,null,null,null,null,null,null,null,null,null,null,null,null,null,null,null,null,null,null,"",null,null,null,null,null,null,null,null,null,null,null,null,null,null,0,""]
[null,null,null,null,null,null,null,null,null,null,null,null,null,null,null,null,null,null,null,null,null,null,null,null,null,null,null,null,null,null,null,null,null,null,null,null,null,null,null,"",null,null,null,null,null,null,null,null,null,null,null,null,null,null,0,""]
[null,null,null,null,null,null,null,null,null,null,null,null,null,null,null,null,null,null,null,null,null,null,null,null,null,null,null,null,null,null,null,null,null,null,null,null,null,null,null,"",null,null,null,null,null,null,null,null,null,null,null,null,null,null,0,""]
[null,null,null,null,null,null,null,null,null,null,null,null,null,null,null,null,null,null,null,null,null,null,null,null,null,null,null,null,null,null,null,null,null,null,null,null,null,null,null,"",null,null,null,null,null,null,null,null,null,null,null,null,null,null,0,""]
[null,null,null,null,null,null,null,null,null,null,null,null,null,null,null,null,null,null,null,null,null,null,null,null,null,null,null,null,null,null,null,null,null,null,null,null,null,null,null,"",null,null,null,null,null,null,null,null,null,null,null,null,null,null,0,""]
[null,null,null,null,null,null,null,null,null,null,null,null,null,null,null,null,null,null,null,null,null,null,null,null,null,null,null,null,null,null,null,null,null,null,null,null,null,null,null,"",null,null,null,null,null,null,null,null,null,null,null,null,null,null,0,""]
[null,null,null,null,null,null,null,null,null,null,null,null,null,null,null,null,null,null,null,null,null,null,null,null,null,null,null,null,null,null,null,null,null,null,null,null,null,null,null,"",null,null,null,null,null,null,null,null,null,null,null,null,null,null,0,""]
[null,null,null,null,null,null,null,null,null,null,null,null,null,null,null,null,null,null,null,null,null,null,null,null,null,null,null,null,null,null,null,null,null,null,null,null,null,null,null,"",null,null,null,null,null,null,null,null,null,null,null,null,null,null,0,""]
[null,null,null,null,null,null,null,null,null,null,null,null,null,null,null,null,null,null,null,null,null,null,null,null,null,null,null,null,null,null,null,null,null,null,null,null,null,null,null,"",null,null,null,null,null,null,null,null,null,null,null,null,null,null,0,""]
[null,null,null,null,null,null,null,null,null,null,null,null,null,null,null,null,null,null,null,null,null,null,null,null,null,null,null,null,null,null,null,null,null,null,null,null,null,null,null,"",null,null,null,null,null,null,null,null,null,null,null,null,null,null,0,""]
[null,null,null,null,null,null,null,null,null,null,null,null,null,null,null,null,null,null,null,null,null,null,null,null,null,null,null,null,null,null,null,null,null,null,null,null,null,null,null,"",null,null,null,null,null,null,null,null,null,null,null,null,null,null,0,""]
[null,null,null,null,null,null,null,null,null,null,null,null,null,null,null,null,null,null,null,null,null,null,null,null,null,null,null,null,null,null,null,null,null,null,null,null,null,null,null,"",null,null,null,null,null,null,null,null,null,null,null,null,null,null,0,""]
[null,null,null,null,null,null,null,null,null,null,null,null,null,null,null,null,null,null,null,null,null,null,null,null,null,null,null,null,null,null,null,null,null,null,null,null,null,null,null,"",null,null,null,null,null,null,null,null,null,null,null,null,null,null,0,""]
[null,null,null,null,null,null,null,null,null,null,null,null,null,null,null,null,null,null,null,null,null,null,null,null,null,null,null,null,null,null,null,null,null,null,null,null,null,null,null,"",null,null,null,null,null,null,null,null,null,null,null,null,null,null,0,""]
[null,null,null,null,null,null,null,null,null,null,null,null,null,null,null,null,null,null,null,null,null,null,null,null,null,null,null,null,null,null,null,null,null,null,null,null,null,null,null,"",null,null,null,null,null,null,null,null,null,null,null,null,null,null,0,""]
[null,null,null,null,null,null,null,null,null,null,null,null,null,null,null,null,null,null,null,null,null,null,null,null,null,null,null,null,null,null,null,null,null,null,null,null,null,null,null,"",null,null,null,null,null,null,null,null,null,null,null,null,null,null,0,""]
[null,null,null,null,null,null,null,null,null,null,null,null,null,null,null,null,null,null,null,null,null,null,null,null,null,null,null,null,null,null,null,null,null,null,null,null,null,null,null,"",null,null,null,null,null,null,null,null,null,null,null,null,null,null,0,""]
[null,null,null,null,null,null,null,null,null,null,null,null,null,null,null,null,null,null,null,null,null,null,null,null,null,null,null,null,null,null,null,null,null,null,null,null,null,null,null,"",null,null,null,null,null,null,null,null,null,null,null,null,null,null,0,""]
[null,null,null,null,null,null,null,null,null,null,null,null,null,null,null,null,null,null,null,null,null,null,null,null,null,null,null,null,null,null,null,null,null,null,null,null,null,null,null,"",null,null,null,null,null,null,null,null,null,null,null,null,null,null,0,""]
[null,null,null,null,null,null,null,null,null,null,null,null,null,null,null,null,null,null,null,null,null,null,null,null,null,null,null,null,null,null,null,null,null,null,null,null,null,null,null,"",null,null,null,null,null,null,null,null,null,null,null,null,null,null,0,""]
[null,null,null,null,null,null,null,null,null,null,null,null,null,null,null,null,null,null,null,null,null,null,null,null,null,null,null,null,null,null,null,null,null,null,null,null,null,null,null,"",null,null,null,null,null,null,null,null,null,null,null,null,null,null,0,""]
[null,null,null,null,null,null,null,null,null,null,null,null,null,null,null,null,null,null,null,null,null,null,null,null,null,null,null,null,null,null,null,null,null,null,null,null,null,null,null,"",null,null,null,null,null,null,null,null,null,null,null,null,null,null,0,""]
[null,null,null,null,null,null,null,null,null,null,null,null,null,null,null,null,null,null,null,null,null,null,null,null,null,null,null,null,null,null,null,null,null,null,null,null,null,null,null,"",null,null,null,null,null,null,null,null,null,null,null,null,null,null,0,""]
[null,null,null,null,null,null,null,null,null,null,null,null,null,null,null,null,null,null,null,null,null,null,null,null,null,null,null,null,null,null,null,null,null,null,null,null,null,null,null,"",null,null,null,null,null,null,null,null,null,null,null,null,null,null,0,""]
[null,null,null,null,null,null,null,null,null,null,null,null,null,null,null,null,null,null,null,null,null,null,null,null,null,null,null,null,null,null,null,null,null,null,null,null,null,null,null,"",null,null,null,null,null,null,null,null,null,null,null,null,null,null,0,""]
[null,null,null,null,null,null,null,null,null,null,null,null,null,null,null,null,null,null,null,null,null,null,null,null,null,null,null,null,null,null,null,null,null,null,null,null,null,null,null,"",null,null,null,null,null,null,null,null,null,null,null,null,null,null,0,""]
[null,null,null,null,null,null,null,null,null,null,null,null,null,null,null,null,null,null,null,null,null,null,null,null,null,null,null,null,null,null,null,null,null,null,null,null,null,null,null,"",null,null,null,null,null,null,null,null,null,null,null,null,null,null,0,""]
[null,null,null,null,null,null,null,null,null,null,null,null,null,null,null,null,null,null,null,null,null,null,null,null,null,null,null,null,null,null,null,null,null,null,null,null,null,null,null,"",null,null,null,null,null,null,null,null,null,null,null,null,null,null,0,""]
[null,null,null,null,null,null,null,null,null,null,null,null,null,null,null,null,null,null,null,null,null,null,null,null,null,null,null,null,null,null,null,null,null,null,null,null,null,null,null,"",null,null,null,null,null,null,null,null,null,null,null,null,null,null,0,""]
[null,null,null,null,null,null,null,null,null,null,null,null,null,null,null,null,null,null,null,null,null,null,null,null,null,null,null,null,null,null,null,null,null,null,null,null,null,null,null,"",null,null,null,null,null,null,null,null,null,null,null,null,null,null,0,""]
[null,null,null,null,null,null,null,null,null,null,null,null,null,null,null,null,null,null,null,null,null,null,null,null,null,null,null,null,null,null,null,null,null,null,null,null,null,null,null,"",null,null,null,null,null,null,null,null,null,null,null,null,null,null,0,""]
[null,null,null,null,null,null,null,null,null,null,null,null,null,null,null,null,null,null,null,null,null,null,null,null,null,null,null,null,null,null,null,null,null,null,null,null,null,null,null,"",null,null,null,null,null,null,null,null,null,null,null,null,null,null,0,""]
[null,null,null,null,null,null,null,null,null,null,null,null,null,null,null,null,null,null,null,null,null,null,null,null,null,null,null,null,null,null,null,null,null,null,null,null,null,null,null,"",null,null,null,null,null,null,null,null,null,null,null,null,null,null,0,""]
[null,null,null,null,null,null,null,null,null,null,null,null,null,null,null,null,null,null,null,null,null,null,null,null,null,null,null,null,null,null,null,null,null,null,null,null,null,null,null,"",null,null,null,null,null,null,null,null,null,null,null,null,null,null,0,""]
[null,null,null,null,null,null,null,null,null,null,null,null,null,null,null,null,null,null,null,null,null,null,null,null,null,null,null,null,null,null,null,null,null,null,null,null,null,null,null,"",null,null,null,null,null,null,null,null,null,null,null,null,null,null,0,""]
[null,null,null,null,null,null,null,null,null,null,null,null,null,null,null,null,null,null,null,null,null,null,null,null,null,null,null,null,null,null,null,null,null,null,null,null,null,null,null,"",null,null,null,null,null,null,null,null,null,null,null,null,null,null,0,""]
[null,null,null,null,null,null,null,null,null,null,null,null,null,null,null,null,null,null,null,null,null,null,null,null,null,null,null,null,null,null,null,null,null,null,null,null,null,null,null,"",null,null,null,null,null,null,null,null,null,null,null,null,null,null,0,""]
[null,null,null,null,null,null,null,null,null,null,null,null,null,null,null,null,null,null,null,null,null,null,null,null,null,null,null,null,null,null,null,null,null,null,null,null,null,null,null,"",null,null,null,null,null,null,null,null,null,null,null,null,null,null,{"$f":"IF(A149&C149&P149&AC149&AG149&AI149&AN149&AU149&AW149&AY149<>\"\",ROW(),0)","v":0},""]
[null,null,null,null,null,null,null,null,null,null,null,null,null,null,null,null,null,null,null,null,null,null,null,null,null,null,null,null,null,null,null,null,null,null,null,null,null,null,null,"",null,null,null,null,null,null,null,null,null,null,null,null,null,null,0,""]
[null,null,null,null,null,null,null,null,null,null,null,null,null,null,null,null,null,null,null,null,null,null,null,null,null,null,null,null,null,null,null,null,null,null,null,null,null,null,null,"",null,null,null,null,null,null,null,null,null,null,null,null,null,null,0,""]
[null,null,null,null,null,null,null,null,null,null,null,null,null,null,null,null,null,null,null,null,null,null,null,null,null,null,null,null,null,null,null,null,null,null,null,null,null,null,null,"",null,null,null,null,null,null,null,null,null,null,null,null,null,null,0,{"$f":"IF(AN152=\"\",\"\",IF(LEFT(AU152,2)=\"軽減\",INT(MID(AU152,3,5)*AN152),IF(RIGHT(AU152,2)=\"課税\",0,INT(AU152*AN152))))","v":""}]
[null,null,null,null,null,null,null,null,null,null,null,null,null,null,null,null,null,null,null,null,null,null,null,null,null,null,null,null,null,null,null,null,null,null,null,null,null,null,null,"",null,null,null,null,null,null,null,null,null,null,null,null,null,null,0,""]
[null,null,null,null,null,null,null,null,null,null,null,null,null,null,null,null,null,null,null,null,null,null,null,null,null,null,null,null,null,null,null,null,null,null,null,null,null,null,null,"",null,null,null,null,null,null,null,null,null,null,null,null,null,null,0,""]
[null,null,null,null,null,null,null,null,null,null,null,null,null,null,null,null,null,null,null,null,null,null,null,null,null,null,null,null,null,null,null,null,null,null,null,null,null,null,null,"",null,null,null,null,null,null,null,null,null,null,null,null,null,null,0,""]
[null,null,null,null,null,null,null,null,null,null,null,null,null,null,null,null,null,null,null,null,null,null,null,null,null,null,null,null,null,null,null,null,null,null,null,null,null,null,null,"",null,null,null,null,null,null,null,null,null,null,null,null,null,null,0,""]
[null,null,null,null,null,null,null,null,null,null,null,null,null,null,null,null,null,null,null,null,null,null,null,null,null,null,null,null,null,null,null,null,null,null,null,null,null,null,null,"",null,null,null,null,null,null,null,null,null,null,null,null,null,null,0,""]
[null,null,null,null,null,null,null,null,null,null,null,null,null,null,null,null,null,null,null,null,null,null,null,null,null,null,null,null,null,null,null,null,null,null,null,null,null,null,null,{"$f":"IF(AI158=\"\",\"\",AC158*AI158)","v":""},null,null,null,null,null,null,null,null,null,null,null,null,null,null,0,""]
[null,null,null,null,null,null,null,null,null,null,null,null,null,null,null,null,null,null,null,null,null,null,null,null,null,null,null,null,null,null,null,null,null,null,null,null,null,null,null,"",null,null,null,null,null,null,null,null,null,null,null,null,null,null,0,""]
[null,null,null,null,null,null,null,null,null,null,null,null,null,null,null,null,null,null,null,null,null,null,null,null,null,null,null,null,null,null,null,null,null,null,null,null,null,null,null,"",null,null,null,null,null,null,null,null,null,null,null,null,null,null,0,""]
[null,null,null,null,null,null,null,null,null,null,null,null,null,null,null,null,null,null,null,null,null,null,null,null,null,null,null,null,null,null,null,null,null,null,null,null,null,null,null,"",null,null,null,null,null,null,null,null,null,null,null,null,null,null,0,""]
[null,null,null,null,null,null,null,null,null,null,null,null,null,null,null,null,null,null,null,null,null,null,null,null,null,null,null,null,null,null,null,null,null,null,null,null,null,null,null,"",null,null,null,null,null,null,null,null,null,null,null,null,null,null,0,""]
[null,null,null,null,null,null,null,null,null,null,null,null,null,null,null,null,null,null,null,null,null,null,null,null,null,null,null,null,null,null,null,null,null,null,null,null,null,null,null,"",null,null,null,null,null,null,null,null,null,null,null,null,null,null,0,""]
[null,null,null,null,null,null,null,null,null,null,null,null,null,null,null,null,null,null,null,null,null,null,null,null,null,null,null,null,null,null,null,null,null,null,null,null,null,null,null,"",null,null,null,null,null,null,null,null,null,null,null,null,null,null,0,""]
[null,null,null,null,null,null,null,null,null,null,null,null,null,null,null,null,null,null,null,null,null,null,null,null,null,null,null,null,null,null,null,null,null,null,null,null,null,null,null,"",null,null,null,null,null,null,null,null,null,null,null,null,null,null,0,""]
[null,null,null,null,null,null,null,null,null,null,null,null,null,null,null,null,null,null,null,null,null,null,null,null,null,null,null,null,null,null,null,null,null,null,null,null,null,null,null,"",null,null,null,null,null,null,null,null,null,null,null,null,null,null,0,""]
[null,null,null,null,null,null,null,null,null,null,null,null,null,null,null,null,null,null,null,null,null,null,null,null,null,null,null,null,null,null,null,null,null,null,null,null,null,null,null,"",null,null,null,null,null,null,null,null,null,null,null,null,null,null,0,""]
[null,null,null,null,null,null,null,null,null,null,null,null,null,null,null,null,null,null,null,null,null,null,null,null,null,null,null,null,null,null,null,null,null,null,null,null,null,null,null,"",null,null,null,null,null,null,null,null,null,null,null,null,null,null,0,""]
[null,null,null,null,null,null,null,null,null,null,null,null,null,null,null,null,null,null,null,null,null,null,null,null,null,null,null,null,null,null,null,null,null,null,null,null,null,null,null,"",null,null,null,null,null,null,null,null,null,null,null,null,null,null,0,""]
[null,null,null,null,null,null,null,null,null,null,null,null,null,null,null,null,null,null,null,null,null,null,null,null,null,null,null,null,null,null,null,null,null,null,null,null,null,null,null,"",null,null,null,null,null,null,null,null,null,null,null,null,null,null,0,""]
[null,null,null,null,null,null,null,null,null,null,null,null,null,null,null,null,null,null,null,null,null,null,null,null,null,null,null,null,null,null,null,null,null,null,null,null,null,null,null,"",null,null,null,null,null,null,null,null,null,null,null,null,null,null,0,""]
[null,null,null,null,null,null,null,null,null,null,null,null,null,null,null,null,null,null,null,null,null,null,null,null,null,null,null,null,null,null,null,null,null,null,null,null,null,null,null,"",null,null,null,null,null,null,null,null,null,null,null,null,null,null,0,""]
[null,null,null,null,null,null,null,null,null,null,null,null,null,null,null,null,null,null,null,null,null,null,null,null,null,null,null,null,null,null,null,null,null,null,null,null,null,null,null,"",null,null,null,null,null,null,null,null,null,null,null,null,null,null,0,""]
[null,null,null,null,null,null,null,null,null,null,null,null,null,null,null,null,null,null,null,null,null,null,null,null,null,null,null,null,null,null,null,null,null,null,null,null,null,null,null,"",null,null,null,null,null,null,null,null,null,null,null,null,null,null,0,""]
[null,null,null,null,null,null,null,null,null,null,null,null,null,null,null,null,null,null,null,null,null,null,null,null,null,null,null,null,null,null,null,null,null,null,null,null,null,null,null,"",null,null,null,null,null,null,null,null,null,null,null,null,null,null,0,""]
[null,null,null,null,null,null,null,null,null,null,null,null,null,null,null,null,null,null,null,null,null,null,null,null,null,null,null,null,null,null,null,null,null,null,null,null,null,null,null,"",null,null,null,null,null,null,null,null,null,null,null,null,null,null,0,""]
[null,null,null,null,null,null,null,null,null,null,null,null,null,null,null,null,null,null,null,null,null,null,null,null,null,null,null,null,null,null,null,null,null,null,null,null,null,null,null,"",null,null,null,null,null,null,null,null,null,null,null,null,null,null,0,""]
[null,null,null,null,null,null,null,null,null,null,null,null,null,null,null,null,null,null,null,null,null,null,null,null,null,null,null,null,null,null,null,null,null,null,null,null,null,null,null,"",null,null,null,null,null,null,null,null,null,null,null,null,null,null,0,""]
[null,null,null,null,null,null,null,null,null,null,null,null,null,null,null,null,null,null,null,null,null,null,null,null,null,null,null,null,null,null,null,null,null,null,null,null,null,null,null,"",null,null,null,null,null,null,null,null,null,null,null,null,null,null,0,""]
[null,null,null,null,null,null,null,null,null,null,null,null,null,null,null,null,null,null,null,null,null,null,null,null,null,null,null,null,null,null,null,null,null,null,null,null,null,null,null,"",null,null,null,null,null,null,null,null,null,null,null,null,null,null,0,""]
[null,null,null,null,null,null,null,null,null,null,null,null,null,null,null,null,null,null,null,null,null,null,null,null,null,null,null,null,null,null,null,null,null,null,null,null,null,null,null,"",null,null,null,null,null,null,null,null,null,null,null,null,null,null,0,""]
[null,null,null,null,null,null,null,null,null,null,null,null,null,null,null,null,null,null,null,null,null,null,null,null,null,null,null,null,null,null,null,null,null,null,null,null,null,null,null,"",null,null,null,null,null,null,null,null,null,null,null,null,null,null,0,""]
[null,null,null,null,null,null,null,null,null,null,null,null,null,null,null,null,null,null,null,null,null,null,null,null,null,null,null,null,null,null,null,null,null,null,null,null,null,null,null,"",null,null,null,null,null,null,null,null,null,null,null,null,null,null,0,""]
[null,null,null,null,null,null,null,null,null,null,null,null,null,null,null,null,null,null,null,null,null,null,null,null,null,null,null,null,null,null,null,null,null,null,null,null,null,null,null,"",null,null,null,null,null,null,null,null,null,null,null,null,null,null,0,""]
[null,null,null,null,null,null,null,null,null,null,null,null,null,null,null,null,null,null,null,null,null,null,null,null,null,null,null,null,null,null,null,null,null,null,null,null,null,null,null,"",null,null,null,null,null,null,null,null,null,null,null,null,null,null,0,""]
[null,null,null,null,null,null,null,null,null,null,null,null,null,null,null,null,null,null,null,null,null,null,null,null,null,null,null,null,null,null,null,null,null,null,null,null,null,null,null,"",null,null,null,null,null,null,null,null,null,null,null,null,null,null,0,""]
[null,null,null,null,null,null,null,null,null,null,null,null,null,null,null,null,null,null,null,null,null,null,null,null,null,null,null,null,null,null,null,null,null,null,null,null,null,null,null,"",null,null,null,null,null,null,null,null,null,null,null,null,null,null,0,""]
[null,null,null,null,null,null,null,null,null,null,null,null,null,null,null,null,null,null,null,null,null,null,null,null,null,null,null,null,null,null,null,null,null,null,null,null,null,null,null,"",null,null,null,null,null,null,null,null,null,null,null,null,null,null,0,""]
[null,null,null,null,null,null,null,null,null,null,null,null,null,null,null,null,null,null,null,null,null,null,null,null,null,null,null,null,null,null,null,null,null,null,null,null,null,null,null,"",null,null,null,null,null,null,null,null,null,null,null,null,null,null,0,""]
[null,null,null,null,null,null,null,null,null,null,null,null,null,null,null,null,null,null,null,null,null,null,null,null,null,null,null,null,null,null,null,null,null,null,null,null,null,null,null,"",null,null,null,null,null,null,null,null,null,null,null,null,null,null,0,""]
[null,null,null,null,null,null,null,null,null,null,null,null,null,null,null,null,null,null,null,null,null,null,null,null,null,null,null,null,null,null,null,null,null,null,null,null,null,null,null,"",null,null,null,null,null,null,null,null,null,null,null,null,null,null,0,""]
[null,null,null,null,null,null,null,null,null,null,null,null,null,null,null,null,null,null,null,null,null,null,null,null,null,null,null,null,null,null,null,null,null,null,null,null,null,null,null,"",null,null,null,null,null,null,null,null,null,null,null,null,null,null,0,""]
[null,null,null,null,null,null,null,null,null,null,null,null,null,null,null,null,null,null,null,null,null,null,null,null,null,null,null,null,null,null,null,null,null,null,null,null,null,null,null,"",null,null,null,null,null,null,null,null,null,null,null,null,null,null,0,""]
[null,null,null,null,null,null,null,null,null,null,null,null,null,null,null,null,null,null,null,null,null,null,null,null,null,null,null,null,null,null,null,null,null,null,null,null,null,null,null,"",null,null,null,null,null,null,null,null,null,null,null,null,null,null,0,""]
[null,null,null,null,null,null,null,null,null,null,null,null,null,null,null,null,null,null,null,null,null,null,null,null,null,null,null,null,null,null,null,null,null,null,null,null,null,null,null,"",null,null,null,null,null,null,null,null,null,null,null,null,null,null,0,""]
[null,null,null,null,null,null,null,null,null,null,null,null,null,null,null,null,null,null,null,null,null,null,null,null,null,null,null,null,null,null,null,null,null,null,null,null,null,null,null,"",null,null,null,null,null,null,null,null,null,null,null,null,null,null,0,""]
[null,null,null,null,null,null,null,null,null,null,null,null,null,null,null,null,null,null,null,null,null,null,null,null,null,null,null,null,null,null,null,null,null,null,null,null,null,null,null,"",null,null,null,null,null,null,null,null,null,null,null,null,null,null,0,""]
[null,null,null,null,null,null,null,null,null,null,null,null,null,null,null,null,null,null,null,null,null,null,null,null,null,null,null,null,null,null,null,null,null,null,null,null,null,null,null,"",null,null,null,null,null,null,null,null,null,null,null,null,null,null,0,""]
[null,null,null,null,null,null,null,null,null,null,null,null,null,null,null,null,null,null,null,null,null,null,null,null,null,null,null,null,null,null,null,null,null,null,null,null,null,null,null,"",null,null,null,null,null,null,null,null,null,null,null,null,null,null,0,""]
[null,null,null,null,null,null,null,null,null,null,null,null,null,null,null,null,null,null,null,null,null,null,null,null,null,null,null,null,null,null,null,null,null,null,null,null,null,null,null,"",null,null,null,null,null,null,null,null,null,null,null,null,null,null,0,""]
[null,null,null,null,null,null,null,null,null,null,null,null,null,null,null,null,null,null,null,null,null,null,null,null,null,null,null,null,null,null,null,null,null,null,null,null,null,null,null,"",null,null,null,null,null,null,null,null,null,null,null,null,null,null,0,""]
[null,null,null,null,null,null,null,null,null,null,null,null,null,null,null,null,null,null,null,null,null,null,null,null,null,null,null,null,null,null,null,null,null,null,null,null,null,null,null,"",null,null,null,null,null,null,null,null,null,null,null,null,null,null,0,""]
[null,null,null,null,null,null,null,null,null,null,null,null,null,null,null,null,null,null,null,null,null,null,null,null,null,null,null,null,null,null,null,null,null,null,null,null,null,null,null,"",null,null,null,null,null,null,null,null,null,null,null,null,null,null,0,""]
[null,null,null,null,null,null,null,null,null,null,null,null,null,null,null,null,null,null,null,null,null,null,null,null,null,null,null,null,null,null,null,null,null,null,null,null,null,null,null,"",null,null,null,null,null,null,null,null,null,null,null,null,null,null,0,""]
[null,null,null,null,null,null,null,null,null,null,null,null,null,null,null,null,null,null,null,null,null,null,null,null,null,null,null,null,null,null,null,null,null,null,null,null,null,null,null,"",null,null,null,null,null,null,null,null,null,null,null,null,null,null,0,""]
[null,null,null,null,null,null,null,null,null,null,null,null,null,null,null,null,null,null,null,null,null,null,null,null,null,null,null,null,null,null,null,null,null,null,null,null,null,null,null,"",null,null,null,null,null,null,null,null,null,null,null,null,null,null,0,""]
[null,null,null,null,null,null,null,null,null,null,null,null,null,null,null,null,null,null,null,null,null,null,null,null,null,null,null,null,null,null,null,null,null,null,null,null,null,null,null,"",null,null,null,null,null,null,null,null,null,null,null,null,null,null,0,""]
[null,null,null,null,null,null,null,null,null,null,null,null,null,null,null,null,null,null,null,null,null,null,null,null,null,null,null,null,null,null,null,null,null,null,null,null,null,null,null,"",null,null,null,null,null,null,null,null,null,null,null,null,null,null,0,""]
[null,null,null,null,null,null,null,null,null,null,null,null,null,null,null,null,null,null,null,null,null,null,null,null,null,null,null,null,null,null,null,null,null,null,null,null,null,null,null,"",null,null,null,null,null,null,null,null,null,null,null,null,null,null,0,""]
[null,null,null,null,null,null,null,null,null,null,null,null,null,null,null,null,null,null,null,null,null,null,null,null,null,null,null,null,null,null,null,null,null,null,null,null,null,null,null,"",null,null,null,null,null,null,null,null,null,null,null,null,null,null,0,""]
[null,null,null,null,null,null,null,null,null,null,null,null,null,null,null,null,null,null,null,null,null,null,null,null,null,null,null,null,null,null,null,null,null,null,null,null,null,null,null,"",null,null,null,null,null,null,null,null,null,null,null,null,null,null,0,""]
[null,null,null,null,null,null,null,null,null,null,null,null,null,null,null,null,null,null,null,null,null,null,null,null,null,null,null,null,null,null,null,null,null,null,null,null,null,null,null,"",null,null,null,null,null,null,null,null,null,null,null,null,null,null,0,""]
[null,null,null,null,null,null,null,null,null,null,null,null,null,null,null,null,null,null,null,null,null,null,null,null,null,null,null,null,null,null,null,null,null,null,null,null,null,null,null,"",null,null,null,null,null,null,null,null,null,null,null,null,null,null,{"$f":"IF(A213&C213&P213&AC213&AG213&AI213&AN213&AU213&AW213&AY213<>\"\",ROW(),0)","v":0},""]
[null,null,null,null,null,null,null,null,null,null,null,null,null,null,null,null,null,null,null,null,null,null,null,null,null,null,null,null,null,null,null,null,null,null,null,null,null,null,null,"",null,null,null,null,null,null,null,null,null,null,null,null,null,null,0,""]
[null,null,null,null,null,null,null,null,null,null,null,null,null,null,null,null,null,null,null,null,null,null,null,null,null,null,null,null,null,null,null,null,null,null,null,null,null,null,null,"",null,null,null,null,null,null,null,null,null,null,null,null,null,null,0,""]
[null,null,null,null,null,null,null,null,null,null,null,null,null,null,null,null,null,null,null,null,null,null,null,null,null,null,null,null,null,null,null,null,null,null,null,null,null,null,null,"",null,null,null,null,null,null,null,null,null,null,null,null,null,null,0,{"$f":"IF(AN216=\"\",\"\",IF(LEFT(AU216,2)=\"軽減\",INT(MID(AU216,3,5)*AN216),IF(RIGHT(AU216,2)=\"課税\",0,INT(AU216*AN216))))","v":""}]
[null,null,null,null,null,null,null,null,null,null,null,null,null,null,null,null,null,null,null,null,null,null,null,null,null,null,null,null,null,null,null,null,null,null,null,null,null,null,null,"",null,null,null,null,null,null,null,null,null,null,null,null,null,null,0,""]
[null,null,null,null,null,null,null,null,null,null,null,null,null,null,null,null,null,null,null,null,null,null,null,null,null,null,null,null,null,null,null,null,null,null,null,null,null,null,null,"",null,null,null,null,null,null,null,null,null,null,null,null,null,null,0,""]
[null,null,null,null,null,null,null,null,null,null,null,null,null,null,null,null,null,null,null,null,null,null,null,null,null,null,null,null,null,null,null,null,null,null,null,null,null,null,null,"",null,null,null,null,null,null,null,null,null,null,null,null,null,null,0,""]
[null,null,null,null,null,null,null,null,null,null,null,null,null,null,null,null,null,null,null,null,null,null,null,null,null,null,null,null,null,null,null,null,null,null,null,null,null,null,null,"",null,null,null,null,null,null,null,null,null,null,null,null,null,null,0,""]
[null,null,null,null,null,null,null,null,null,null,null,null,null,null,null,null,null,null,null,null,null,null,null,null,null,null,null,null,null,null,null,null,null,null,null,null,null,null,null,"",null,null,null,null,null,null,null,null,null,null,null,null,null,null,0,""]
[null,null,null,null,null,null,null,null,null,null,null,null,null,null,null,null,null,null,null,null,null,null,null,null,null,null,null,null,null,null,null,null,null,null,null,null,null,null,null,{"$f":"IF(AI222=\"\",\"\",AC222*AI222)","v":""},null,null,null,null,null,null,null,null,null,null,null,null,null,null,0,""]
[null,null,null,null,null,null,null,null,null,null,null,null,null,null,null,null,null,null,null,null,null,null,null,null,null,null,null,null,null,null,null,null,null,null,null,null,null,null,null,"",null,null,null,null,null,null,null,null,null,null,null,null,null,null,0,""]
[null,null,null,null,null,null,null,null,null,null,null,null,null,null,null,null,null,null,null,null,null,null,null,null,null,null,null,null,null,null,null,null,null,null,null,null,null,null,null,"",null,null,null,null,null,null,null,null,null,null,null,null,null,null,0,""]
[null,null,null,null,null,null,null,null,null,null,null,null,null,null,null,null,null,null,null,null,null,null,null,null,null,null,null,null,null,null,null,null,null,null,null,null,null,null,null,"",null,null,null,null,null,null,null,null,null,null,null,null,null,null,null,""]
[null,null,null,null,null,null,null,null,null,null,null,null,null,null,null,null,null,null,null,null,null,null,null,null,null,null,null,null,null,null,null,null,null,null,null,null,null,null,null,"",null,null,null,null,null,null,null,null,null,null,null,null,null,null,null,""]
[null,null,null,null,null,null,null,null,null,null,null,null,null,null,null,null,null,null,null,null,null,null,null,null,null,null,null,null,null,null,null,null,null,null,null,null,null,null,null,"",null,null,null,null,null,null,null,null,null,null,null,null,null,null,null,""]
[null,null,null,null,null,null,null,null,null,null,null,null,null,null,null,null,null,null,null,null,null,null,null,null,null,null,null,null,null,null,null,null,null,null,null,null,null,null,null,"",null,null,null,null,null,null,null,null,null,null,null,null,null,null,null,""]
[null,null,null,null,null,null,null,null,null,null,null,null,null,null,null,null,null,null,null,null,null,null,null,null,null,null,null,null,null,null,null,null,null,null,null,null,null,null,null,"",null,null,null,null,null,null,null,null,null,null,null,null,null,null,null,""]
[null,null,null,null,null,null,null,null,null,null,null,null,null,null,null,null,null,null,null,null,null,null,null,null,null,null,null,null,null,null,null,null,null,null,null,null,null,null,null,"",null,null,null,null,null,null,null,null,null,null,null,null,null,null,null,""]
[null,null,null,null,null,null,null,null,null,null,null,null,null,null,null,null,null,null,null,null,null,null,null,null,null,null,null,null,null,null,null,null,null,null,null,null,null,null,null,"",null,null,null,null,null,null,null,null,null,null,null,null,null,null,null,""]
[null,null,null,null,null,null,null,null,null,null,null,null,null,null,null,null,null,null,null,null,null,null,null,null,null,null,null,null,null,null,null,null,null,null,null,null,null,null,null,"",null,null,null,null,null,null,null,null,null,null,null,null,null,null,null,""]
[null,null,null,null,null,null,null,null,null,null,null,null,null,null,null,null,null,null,null,null,null,null,null,null,null,null,null,null,null,null,null,null,null,null,null,null,null,null,null,"",null,null,null,null,null,null,null,null,null,null,null,null,null,null,null,""]
[null,null,null,null,null,null,null,null,null,null,null,null,null,null,null,null,null,null,null,null,null,null,null,null,null,null,null,null,null,null,null,null,null,null,null,null,null,null,null,"",null,null,null,null,null,null,null,null,null,null,null,null,null,null,null,""]
[null,null,null,null,null,null,null,null,null,null,null,null,null,null,null,null,null,null,null,null,null,null,null,null,null,null,null,null,null,null,null,null,null,null,null,null,null,null,null,"",null,null,null,null,null,null,null,null,null,null,null,null,null,null,null,""]
[null,null,null,null,null,null,null,null,null,null,null,null,null,null,null,null,null,null,null,null,null,null,null,null,null,null,null,null,null,null,null,null,null,null,null,null,null,null,null,"",null,null,null,null,null,null,null,null,null,null,null,null,null,null,null,""]
[null,null,null,null,null,null,null,null,null,null,null,null,null,null,null,null,null,null,null,null,null,null,null,null,null,null,null,null,null,null,null,null,null,null,null,null,null,null,null,"",null,null,null,null,null,null,null,null,null,null,null,null,null,null,null,""]
[null,null,null,null,null,null,null,null,null,null,null,null,null,null,null,null,null,null,null,null,null,null,null,null,null,null,null,null,null,null,null,null,null,null,null,null,null,null,null,"",null,null,null,null,null,null,null,null,null,null,null,null,null,null,null,""]
[null,null,null,null,null,null,null,null,null,null,null,null,null,null,null,null,null,null,null,null,null,null,null,null,null,null,null,null,null,null,null,null,null,null,null,null,null,null,null,"",null,null,null,null,null,null,null,null,null,null,null,null,null,null,null,""]
[null,null,null,null,null,null,null,null,null,null,null,null,null,null,null,null,null,null,null,null,null,null,null,null,null,null,null,null,null,null,null,null,null,null,null,null,null,null,null,"",null,null,null,null,null,null,null,null,null,null,null,null,null,null,null,""]
[null,null,null,null,null,null,null,null,null,null,null,null,null,null,null,null,null,null,null,null,null,null,null,null,null,null,null,null,null,null,null,null,null,null,null,null,null,null,null,"",null,null,null,null,null,null,null,null,null,null,null,null,null,null,null,""]
[null,null,null,null,null,null,null,null,null,null,null,null,null,null,null,null,null,null,null,null,null,null,null,null,null,null,null,null,null,null,null,null,null,null,null,null,null,null,null,"",null,null,null,null,null,null,null,null,null,null,null,null,null,null,null,""]
[null,null,null,null,null,null,null,null,null,null,null,null,null,null,null,null,null,null,null,null,null,null,null,null,null,null,null,null,null,null,null,null,null,null,null,null,null,null,null,"",null,null,null,null,null,null,null,null,null,null,null,null,null,null,null,""]
[null,null,null,null,null,null,null,null,null,null,null,null,null,null,null,null,null,null,null,null,null,null,null,null,null,null,null,null,null,null,null,null,null,null,null,null,null,null,null,"",null,null,null,null,null,null,null,null,null,null,null,null,null,null,null,""]
[null,null,null,null,null,null,null,null,null,null,null,null,null,null,null,null,null,null,null,null,null,null,null,null,null,null,null,null,null,null,null,null,null,null,null,null,null,null,null,"",null,null,null,null,null,null,null,null,null,null,null,null,null,null,null,""]
[null,null,null,null,null,null,null,null,null,null,null,null,null,null,null,null,null,null,null,null,null,null,null,null,null,null,null,null,null,null,null,null,null,null,null,null,null,null,null,"",null,null,null,null,null,null,null,null,null,null,null,null,null,null,null,""]
[null,null,null,null,null,null,null,null,null,null,null,null,null,null,null,null,null,null,null,null,null,null,null,null,null,null,null,null,null,null,null,null,null,null,null,null,null,null,null,"",null,null,null,null,null,null,null,null,null,null,null,null,null,null,null,""]
[null,null,null,null,null,null,null,null,null,null,null,null,null,null,null,null,null,null,null,null,null,null,null,null,null,null,null,null,null,null,null,null,null,null,null,null,null,null,null,"",null,null,null,null,null,null,null,null,null,null,null,null,null,null,null,""]
[null,null,null,null,null,null,null,null,null,null,null,null,null,null,null,null,null,null,null,null,null,null,null,null,null,null,null,null,null,null,null,null,null,null,null,null,null,null,null,"",null,null,null,null,null,null,null,null,null,null,null,null,null,null,null,""]
[null,null,null,null,null,null,null,null,null,null,null,null,null,null,null,null,null,null,null,null,null,null,null,null,null,null,null,null,null,null,null,null,null,null,null,null,null,null,null,"",null,null,null,null,null,null,null,null,null,null,null,null,null,null,null,""]
[]
[]
[]
[]
[]
[]
[]
[]
[]
[]
[]
[]
[]
[]
[]
[]
[]
[]
[]
[]
[]
[]
[]
[]
[]
[]
[]
[]
[]
[]
[]
[]
[]
[]
[]
[]
[]
[]
[]
[]
[]
[]
[]
[]
[]
[]
[]
[]
[]
[]
[]
[]
[]
[]
[]
[]
[]
[]
[]
[]
[]
[]
[]
[]
[]
[]
[]
[]
[]
[]
[]
[]
[]
[]
[]
[]
[]
[]
[]
[]
[]
[]
[]
[]
[]
[]
[]
[]
[]
[]
[]
[]
[]
[]
[]
[]
[]
[]
[]
[]
[]
[]
[]
[]
[]
[]
[]
[]
[]
[]
[]
[]
[]
[]
[]
[]
[]
[]
[]
[]
[]
[]
[]
[]
[]
[]
[]
[]
[]
[]
[]
[]
[]
[]
[]
[]
[]
[]
[]
[]
[]
[]
[]
[]
[]
[]
[]
[]
[]
[]
[]
[]
[]
[]
[]
[]
[]
[]
[]
[]
[]
[]
[]
[]
[]
[]
[]
[]
[]
[]
[]
[]
[]
[]
[]
[]
[]
[]
[]
[]
[]
[]
[]
[]
[]
[]
[]
[]
[]
[]
[]
[]
[]
[]
[]
[]
[]
[]
[]
[]
[]
[]
[]
[]
[]
[]
[]
[]
[]
[]
[]
[]
[]
[]
[]
[]
[]
[]
[]
[]
[]
[]
[]
[]
[]
[]
[]
[]
[]
[]
[]
[]
[]
[]
[]
[]
[]
[]
[]
[]
[]
[]
[]
[]
[]
[]
[]
[]
[]
[]
[]
[]
[]
[]
[]
[]
[]
[]
[]
[]
[]
[]
[]
[]
[]
[]
[]
[]
[]
[]
[]
[]
[]
[]
[]
[]
[]
[]
[]
[]
[]
[]
[]
[]
[]
[]
[]
[]
[]
[]
[]
[]
[]
[]
[]
[]
[]
[]
[]
[]
[]
[]
[]
[]
[]
[]
[]
[]
[]
[]
[]
[]
[]
[]
[]
[]
[]
[]
[]
[]
[]
[]
[]
[]
[]
[]
[]
[]
[]
[]
[]
[]
[]
[]
[]
[]
[]
[]
[]
[]
[]
[]
[]
[]
[]
[]
[]
[]
[]
[]
[]
[]
[]
[]
[]
[]
[]
[]
[]
[]
[]
[]
[]
[]
[]
[]
[]
[]
[]
[]
[]
[]
[]
[]
[]
[]
[]
[]
[]
[]
[]
[]
[]
[]
[]
[]
[]
[]
[]
[]
[]
[]
[]
[]
[]
[]
[]
[]
[]
[]
[]
[]
[]
[]
[]
[]
[]
[]
[]
[]
[]
[]
[]
[]
[]
[]
[]
[]
[]
[]
[]
[]
[]
[]
[]
[]
[]
[]
[]
[]
[]
[]
[]
[]
[]
[]
[]
[]
[]
[]
[]
[]
[]
[]
[]
[]
[]
[]
[]
[]
[]
[]
[]
[]
[]
[]
[]
[]
[]
[]
[]
[]
[]
[]
[]
[]
[]
[]
[]
[]
[]
[]
[]
[]
[]
[]
[]
[]
[]
[]
[]
[]
[]
[]
[]
[]
[]
[]
[]
[]
[]
[]
[]
[]
[]
[]
[]
[]
[]
[]
[]
[]
[]
[]
[]
[]
[]
[]
[]
[]
[]
[]
[]
[]
[]
[]
[]
[]
[]
[]
[]
[]
[]
[]
[]
[]
[]
[]
[]
[]
[]
[]
[]
[]
[]
[]
[]
[]
[]
[]
[]
[]
[]
[]
[]
[]
[]
[]
[]
[]
[]
[]
[]
[]
[]
[]
[]
[]
[]
[]
[]
[]
[]
[]
[]
[]
[]
[]
[]
[]
[]
[]
[]
[]
[]
[]
[]
[]
[]
[]
[]
[]
[]
[]
[]
[]
[]
[]
[]
[]
[]
[]
[]
[]
[]
[]
[]
[]
[]
[]
[]
[]
[]
[]
[]
[]
[]
[]
[]
[]
[]
[]
[]
[]
[]
[]
[]
[]
[]
[]
[]
[]
[]
[]
[]
[]
[]
[]
[]
[]
[]
[]
[]
[]
[]
[]
[]
[]
[]
[]
[]
[]
[]
[]
[]
[]
[]
[]
[]
[]
[]
[]
[]
[]
[]
[]
[]
[]
[]
[]
[]
[]
[]
[]
[]
[]
[]
[]
[]
[]
[]
[]
[]
[]
[]
[]
[]
[]
[]
[]
[]
[]
[]
[]
[]
[]
[]
[]
[]
[]
[]
[]
[]
[]
[]
[]
[]
[]
[]
[]
[]
[]
[]
[]
[]
[]
[]
[]
[]
[]
[]
[]
[]
[]
[]
[]
[]
[]
[]
[]
[]
[]
[]
[]
[]
[]
[]
[]
[]
[]
[]
[]
[]
[]
[]
[]
[]
[]
[]
[]
[]
[]
[]
[]
[]
[]
[]
[]
[]
[]
[]
[]
[]
[]
[]
[]
[]
[]
[]
[]
[]
[]
[]
[]
[]
[]
[]
[]
[]
[]
[]
[]
[]
[]
[]
[]
[]
[]
[]
[]
[]
[]
[]
[]
[]
[]
[]
[]
[]
[]
[]
[]
[]
[]
[]
[]
[]
[]
[]
[]
[]
[]
[]
[]
[]
[]
[]
[]
[]
[]
[]
[]
[]
[]
[]
[]
[]
[]
[]
[]
[]
[]
[]
[]
[]
[]
[]
[]
[]
[]
[]
[]
[]
[]
[]
[]
[]
[]
[]
[]
[]
[]
[]
[]
[]
[]
[]
[]
[]
[]
[]
[]
[]
[]
[]
[]
[]
[]
[]
[]
[]
[]
[]
[]
[]
[]
[]
[]
[]
[]
[]
[]
[]
[]
[]
[]
[]
[]
[]
[]
[]
[]
[]
[]
[]
[]
[]
[]
[]
[]
[]
[]
[]
[]
[]
[]
[]
[]
[]
[]
[]
[]
[]
[]
[]
[]
[]
[]
[]
[]
[]
[]
[]
[]
[]
[]
[]
[]
[]
[]
[]
[]
[]
[]
[]
[]
[]
[]
[]
[]
[]
[]
[]
[]
[]
[]
[]
[]
[]
[]
[]
[]
[]
[]
[]
[]
[]
[]
[]
[]
[]
[]
[]
[]
[]
[]
[]
[]
[]
[]
[]
[]
[]
[]
[]
[]
[]
[]
[]
[]
[]
[]
[]
[]
[]
[]
[]
[]
[]
[]
[]
[]
[]
[]
[]
[]
[]
[]
[]
[]
[]
[]
[]
[]
[]
[]
[]
[]
[]
[]
[]
[]
[]
[]
[]
[]
[]
[]
[]
[]
[]
[]
[]
[]
[]
[]
[]
[]
[]
[]
[]
[]
[]
[]
[]
[]
[]
[]
[]
[]
[]
[]
[]
[]
[]
[]
[]
[]
[]
[]
[]
[]
[]
[]
[]
[]
[]
[]
[]
[]
[]
[]
[]
[]
[]
[]
[]
[]
[]
[]
[]
[]
[]
[]
[]
[]
[]
[]
[]
[]
[]
[]
[]
[]
[]
[]
[]
[]
[]
[]
[]
[]
[]
[]
[]
[]
[]
[]
[]
[]
[]
[]
[]
[]
[]
[]
[]
[]
[]
[]
[]
[]
[]
[]
[]
[]
[]
[]
[]
[]
[]
[]
[]
[]
[]
[]
[]
[]
[]
[]
[]
[]
[]
[]
[]
[]
[]
[]
[]
[]
[]
[]
[]
[]
[]
[]
[]
[]
[]
[]
[]
[]
[]
[]
[]
[]
[]
[]
[]
[]
[]
[]
[]
[]
[]
[]
[]
[]
[]
[]
[]
[]
[]
[]
[]
[]
[]
[]
[]
[]
[]
[]
[]
[]
[]
[]
[]
[]
[]
[]
[]
[]
[]
[]
[]
[]
[]
[]
[]
[]
[]
[]
[]
[]
[]
[]
[]
[]
[]
[]
[]
[]
[]
[]
[]
[]
[]
[]
[]
[]
[]
[]
[]
[]
[]
[]
[]
[]
[]
[]
[]
[]
[]
[]
[]
[]
[]
[]
[]
[]
[]
[]
[]
[]
[]
[]
[]
[]
[]
[]
[]
[]
[]
[null,null,null,null,null,null,null,null,10001650,"矢田雄一","矢田雄一",null,"三重県桑名市芳ヶ崎"]